{"text_format":"2","workbook":"xlsx","n_sheets":1,"sheets":["Приложение 3"],"not_rendered":{"charts":0,"images":0,"macros":0,"external_links":0,"defined_names":2,"comments":0,"pivot_tables":0},"unopened":[],"bounds":{"document_bytes":16777216,"sheet_cells":100000,"run_cost":"one","rows_first":2000,"rows_last":500,"rows_between":2000,"halvings":0,"cell_chars":16384,"cell_head_chars":4096},"cells_cut":0,"cells_raw":0,"read":"whole","date_system":"1900"}

{"sheet":"Приложение 3","index":0,"n_rows":580,"n_cols":35,"rows_kept":580,"cut":false,"hidden":false,"merged":[[6,30,6,31],[6,32,7,32],[6,33,6,34],[579,0,579,3],[6,23,7,23],[6,24,6,25],[6,26,7,26],[6,27,6,28],[6,29,7,29],[6,15,6,16],[6,17,7,17],[6,18,6,19],[6,20,7,20],[6,21,6,22],[6,8,7,8],[6,9,6,10],[6,11,7,11],[6,12,6,13],[6,14,7,14],[5,20,5,22],[5,23,5,25],[5,26,5,28],[5,29,5,31],[5,32,5,34],[4,20,4,22],[4,23,4,25],[4,26,4,28],[4,29,4,31],[4,32,4,34],[2,0,2,16],[4,0,7,0],[4,1,7,1],[4,2,7,2],[4,3,7,3],[4,4,7,4],[4,5,4,7],[4,8,4,13],[4,14,4,19],[5,5,5,7],[5,8,5,10],[5,11,5,13],[5,14,5,16],[5,17,5,19],[6,5,7,5],[6,6,6,7]]}
[]
[]
[]
[]
["№ п/п","Муниципальное образование","Наименование населенного пункта","Общее количество негазифицированных домовладений* в населенном пункте","Наименование газораспределительной организации","График реализации догазификации",null,null,"График реализации догазификации",{"$nulls":5},"График реализации догазификации",{"$nulls":5},"График реализации догазификации",null,null,"График реализации догазификации",null,null,"График реализации догазификации",null,null,"График реализации догазификации",null,null,"График реализации догазификации"]
[{"$nulls":5},"2021 год",null,null,"2022 год",null,null,"2023 год",null,null,"2024 год",null,null,"2025 год",null,null,"2026 год",null,null,"2027 год",null,null,"2028 год",null,null,"2029 год",null,null,"2030 год"]
[{"$nulls":5},"количество объектов домовладений* в населенном пункте, для которых создается техническая возможность подключения, штук","срок догазификации (месяц)",null,"количество объектов домовладений* в населенном пункте, для которых создается техническая возможность подключения, штук","срок догазификации (месяц)",null,"количество объектов домовладений* в населенном пункте, для которых создается техническая возможность подключения, штук","срок догазификации (месяц)",null,"количество объектов домовладений* в населенном пункте, для которых создается техническая возможность подключения, штук","срок догазификации (месяц)",null,"количество объектов домовладений* в населенном пункте, для которых создается техническая возможность подключения, штук","срок догазификации (месяц)",null,"количество объектов домовладений* в населенном пункте, для которых создается техническая возможность подключения, штук","срок догазификации (месяц)",null,"количество объектов домовладений* в населенном пункте, для которых создается техническая возможность подключения, штук","срок догазификации (месяц)",null,"количество объектов домовладений* в населенном пункте, для которых создается техническая возможность подключения, штук","срок догазификации (месяц)",null,"количество объектов домовладений* в населенном пункте, для которых создается техническая возможность подключения, штук","срок догазификации (месяц)",null,"количество объектов домовладений* в населенном пункте, для которых создается техническая возможность подключения, штук","срок догазификации (месяц)"]
[{"$nulls":6},"начало","окончание",null,"начало","окончание",null,"начало","окончание",null,"начало","окончание",null,"начало","окончание",null,"начало","окончание",null,"начало","окончание",null,"начало","окончание",null,"начало","окончание",null,"начало","окончание"]
[1,2,3,4,5,6,7,8,9,10,11,12,13,14,15,16,17,18,19,20,21,22,23,24,25,26,27,28,29,30,31,32,33,34,35]
["1.","Агаповский муниципальный район","п. Аблязово",4,"АО «Газпром газораспределение Челябинск»",{"$nulls":6},3,"январь","декабрь",1,"январь","декабрь"]
["2.","Агаповский муниципальный район","п. Ближний",5,"АО «Газпром газораспределение Челябинск»",null,null,null,2,"январь","декабрь",3,"январь","декабрь"]
["3.","Агаповский муниципальный район","п. Буранный",127,"АО «Газпром газораспределение Челябинск»",null,null,null,9,"январь","декабрь",85,"январь","декабрь",2,"январь","декабрь",31,"январь","декабрь"]
["4.","Агаповский муниципальный район","п. Вперед",8,"АО «Газпром газораспределение Челябинск»",null,null,null,6,"январь","декабрь",2,"январь","декабрь"]
["5.","Агаповский муниципальный район","п. Гумбейский",5,"АО «Газпром газораспределение Челябинск»",null,null,null,3,"январь","декабрь",2,"январь","декабрь"]
["6.","Агаповский муниципальный район","п. Желтинский",25,"АО «Газпром газораспределение Челябинск»",null,null,null,7,"январь","декабрь",9,"январь","декабрь",9,"январь","декабрь"]
["7.","Агаповский муниципальный район","п. Зингейка",5,"АО «Газпром газораспределение Челябинск»",null,null,null,2,"январь","декабрь",3,"январь","декабрь"]
["8.","Агаповский муниципальный район","п. Кировский",2,"АО «Газпром газораспределение Челябинск»",null,null,null,2,"январь","декабрь"]
["9.","Агаповский муниципальный район","п. Магнитный",3,"АО «Газпром газораспределение Челябинск»",{"$nulls":6},3,"январь","декабрь"]
["10.","Агаповский муниципальный район","п. Наваринка",161,"АО «Газпром газораспределение Челябинск»",null,null,null,1,"январь","декабрь",139,"январь","декабрь",null,null,null,21,"январь","декабрь"]
["11.","Агаповский муниципальный район","п. Наровчатка",24,"АО «Газпром газораспределение Челябинск»",null,null,null,1,"январь","декабрь",15,"январь","декабрь",3,"январь","декабрь",5,"январь","декабрь"]
["12.","Агаповский муниципальный район","п. Новобуранное",118,"АО «Газпром газораспределение Челябинск»",{"$nulls":6},72,"январь","декабрь",1,"январь","декабрь",45,"январь","декабрь"]
["13.","Агаповский муниципальный район","п. Озерный",30,"АО «Газпром газораспределение Челябинск»",null,null,null,22,"январь","декабрь",8,"январь","декабрь",1,"январь","декабрь"]
["14.","Агаповский муниципальный район","п. Первомайский",25,"АО «Газпром газораспределение Челябинск»",null,null,null,19,"январь","декабрь",6,"январь","декабрь"]
["15.","Агаповский муниципальный район","п. Приморский",287,"АО «Газпром газораспределение Челябинск»",null,null,null,234,"январь","декабрь",44,"январь","декабрь",9,"январь","декабрь"]
["16.","Агаповский муниципальный район","п. Просторный",2,"АО «Газпром газораспределение Челябинск»",{"$nulls":9},2,"январь","декабрь"]
["17.","Агаповский муниципальный район","п. Черниговский",50,"АО «Газпром газораспределение Челябинск»",null,null,null,2,"январь","декабрь",32,"январь","декабрь",1,"январь","декабрь",15,"январь","декабрь"]
["18.","Агаповский муниципальный район","п. Черноотрог",25,"АО «Газпром газораспределение Челябинск»",null,null,null,20,"январь","декабрь",5,"январь","декабрь"]
["19.","Агаповский муниципальный район","п. Южный",27,"АО «Газпром газораспределение Челябинск»",{"$nulls":6},23,"январь","декабрь",3,"январь","декабрь",1,"январь","декабрь"]
["20.","Агаповский муниципальный район","п. Янгельский",13,"АО «Газпром газораспределение Челябинск»",null,null,null,7,"январь","декабрь",4,"январь","декабрь",2,"январь","декабрь"]
["21.","Агаповский муниципальный район","п. Буранная, железнодорожная станция",14,"АО «Газпром газораспределение Челябинск»",null,null,null,10,"январь","декабрь",5,"январь","декабрь"]
["22.","Агаповский муниципальный район","п. Субутак, железнодорожная станция",31,"АО «Газпром газораспределение Челябинск»",null,null,null,15,"январь","декабрь",10,"январь","декабрь",null,null,null,6,"январь","декабрь"]
["23.","Агаповский муниципальный район","с. Агаповка",96,"АО «Газпром газораспределение Челябинск»",null,null,null,37,"январь","декабрь",23,"январь","декабрь",5,"январь","декабрь",31,"январь","декабрь"]
["24.","Агаповский муниципальный район","с. Новобурановка",41,"АО «Газпром газораспределение Челябинск»",null,null,null,15,"январь","декабрь",21,"январь","декабрь",3,"январь","декабрь",2,"январь","декабрь"]
["25.","Аргаяшский муниципальный район","д. Абдырова",1,"АО «Газпром газораспределение Челябинск»",{"$nulls":9},1,"январь","декабрь"]
["26.","Аргаяшский муниципальный район","д.Акбашева",85,"АО «Газпром газораспределение Челябинск»",null,null,null,7,"январь","декабрь",75,"январь","декабрь",3,"январь","декабрь"]
["27.","Аргаяшский муниципальный район","д. Аязгулова",39,"АО «Газпром газораспределение Челябинск»",null,null,null,1,"январь","декабрь",35,"январь","декабрь",3,"январь","декабрь"]
["28.","Аргаяшский муниципальный район","д. Бажикаева",71,"АО «Газпром газораспределение Челябинск»",null,null,null,16,"январь","декабрь",49,"январь","декабрь",6,"январь","декабрь"]
["29.","Аргаяшский муниципальный район","д. Большая Яумбаева",18,"АО «Газпром газораспределение Челябинск»",null,null,null,4,"январь","декабрь",7,"январь","декабрь",null,null,null,7,"январь","декабрь"]
["30.","Аргаяшский муниципальный район","д. Булатова",1,"АО «Газпром газораспределение Челябинск»",{"$nulls":6},1,"январь","декабрь"]
["31.","Аргаяшский муниципальный район","д. Дербишева",72,"АО «Газпром газораспределение Челябинск»",null,null,null,4,"январь","декабрь",54,"январь","декабрь",14,"январь","декабрь"]
["32.","Аргаяшский муниципальный район","д. Ишалино",26,"АО «Газпром газораспределение Челябинск»",null,null,null,1,"январь","декабрь",24,"январь","декабрь",1,"январь","декабрь"]
["33.","Аргаяшский муниципальный район","д. Калиновка",2,"АО «Газпром газораспределение Челябинск»",{"$nulls":6},2,"январь","декабрь"]
["34.","Аргаяшский муниципальный район","д. Камышевка",37,"АО «Газпром газораспределение Челябинск»",null,null,null,1,"январь","декабрь",32,"январь","декабрь",4,"январь","декабрь"]
["35.","Аргаяшский муниципальный район","д. Кузяшева",20,"АО «Газпром газораспределение Челябинск»",null,null,null,2,"январь","декабрь",17,"январь","декабрь",null,null,null,1,"январь","декабрь"]
["36.","Аргаяшский муниципальный район","д. Курманова",113,"АО «Газпром газораспределение Челябинск»",null,null,null,5,"январь","декабрь",103,"январь","декабрь",4,"январь","декабрь"]
["37.","Аргаяшский муниципальный район","д. Метелева",26,"АО «Газпром газораспределение Челябинск»",null,null,null,2,"январь","декабрь",19,"январь","декабрь",5,"январь","декабрь"]
["38.","Аргаяшский муниципальный район","д. Новая Соболева",11,"АО «Газпром газораспределение Челябинск»",null,null,null,3,"январь","декабрь",8,"январь","декабрь"]
["39.","Аргаяшский муниципальный район","д. Норкино",65,"АО «Газпром газораспределение Челябинск»",null,null,null,3,"январь","декабрь",59,"январь","декабрь",2,"январь","декабрь"]
["40.","Аргаяшский муниципальный район","д. Селяева",67,"АО «Газпром газораспределение Челябинск»",null,null,null,2,"январь","декабрь",59,"январь","декабрь",6,"январь","декабрь"]
["41.","Аргаяшский муниципальный район","д. Старая Соболева",1,"АО «Газпром газораспределение Челябинск»",{"$nulls":6},1,"январь","декабрь"]
["42.","Аргаяшский муниципальный район","п. Аргази",103,"АО «Газпром газораспределение Челябинск»",null,null,null,21,"январь","декабрь",48,"январь","декабрь",3,"январь","декабрь",31,"январь","декабрь"]
["43.","Аргаяшский муниципальный район","п. Ишалино, железнодорожная станция",73,"АО «Газпром газораспределение Челябинск»",null,null,null,6,"январь","декабрь",63,"январь","декабрь",4,"январь","декабрь"]
["44.","Аргаяшский муниципальный район","п. Маякский",7,"АО «Газпром газораспределение Челябинск»",null,null,null,1,"январь","декабрь",4,"январь","декабрь",null,null,null,2,"январь","декабрь"]
["45.","Аргаяшский муниципальный район","п. Миасский",28,"АО «Газпром газораспределение Челябинск»",{"$nulls":6},22,"январь","декабрь",6,"январь","декабрь"]
["46.","Аргаяшский муниципальный район","п. Сайма",1,"АО «Газпром газораспределение Челябинск»",{"$nulls":6},1,"январь","декабрь"]
["47.","Аргаяшский муниципальный район","п. Увильды",2,"АО «Газпром газораспределение Челябинск»",{"$nulls":6},2,"январь","декабрь"]
["48.","Аргаяшский муниципальный район","п. Худайбердинский",10,"АО «Газпром газораспределение Челябинск»",{"$nulls":6},8,"январь","декабрь",2,"январь","декабрь"]
["49.","Аргаяшский муниципальный район","с. Аргаяш",219,"АО «Газпром газораспределение Челябинск»",null,null,null,28,"январь","декабрь",189,"январь","декабрь",3,"январь","декабрь"]
["50.","Аргаяшский муниципальный район","с. Байрамгулово",65,"АО «Газпром газораспределение Челябинск»",null,null,null,10,"январь","декабрь",31,"январь","декабрь",24,"январь","декабрь"]
["51.","Аргаяшский муниципальный район","с. Губернское",106,"АО «Газпром газораспределение Челябинск»",null,null,null,21,"январь","декабрь",50,"январь","декабрь",null,null,null,35,"январь","декабрь"]
["52.","Аргаяшский муниципальный район","с. Кузнецкое",48,"АО «Газпром газораспределение Челябинск»",null,null,null,17,"январь","декабрь",30,"январь","декабрь",null,null,null,1,"январь","декабрь"]
["53.","Аргаяшский муниципальный район","с. Кулуево",406,"АО «Газпром газораспределение Челябинск»",null,null,null,45,"январь","декабрь",339,"январь","декабрь",22,"январь","декабрь"]
["54.","Ашинский муниципальный район","г. Аша",4161,"АО «Газпром газораспределение Челябинск»",null,null,null,142,"январь","декабрь",1107,"январь","декабрь",698,"январь","декабрь",1686,"январь","декабрь"]
["55.","Ашинский муниципальный район","г. Миньяр",1259,"АО «Газпром газораспределение Челябинск»",null,null,null,44,"январь","декабрь",352,"январь","декабрь",315,"январь","декабрь",548,"январь","декабрь"]
["56.","Ашинский муниципальный район","г. Сим",749,"АО «Газпром газораспределение Челябинск»",null,null,null,159,"январь","декабрь",203,"январь","декабрь",30,"январь","декабрь",357,"январь","декабрь"]
["57.","Ашинский муниципальный район","п. Новозаречный",75,"АО «Газпром газораспределение Челябинск»",{"$nulls":9},75,"январь","декабрь"]
["58.","Ашинский муниципальный район","п. Ук",134,"АО «Газпром газораспределение Челябинск»",null,null,null,47,"январь","декабрь",81,"январь","декабрь",6,"январь","декабрь"]
["59.","Ашинский муниципальный район","рп. Кропачево",30,"АО «Газпром газораспределение Челябинск»",null,null,null,11,"январь","декабрь",14,"январь","декабрь",5,"январь","декабрь"]
["60.","Брединский муниципальный район","п. Амурский",3,"АО «Газпром газораспределение Челябинск»",{"$nulls":6},3,"январь","декабрь"]
["61.","Брединский муниципальный район","п. Андреевский",17,"АО «Газпром газораспределение Челябинск»",null,null,null,4,"январь","декабрь",7,"январь","декабрь",1,"январь","декабрь",5,"январь","декабрь"]
["62.","Брединский муниципальный район","п. Бреды",103,"АО «Газпром газораспределение Челябинск»",null,null,null,24,"январь","декабрь",63,"январь","декабрь",2,"январь","декабрь",14,"январь","декабрь"]
["63.","Брединский муниципальный район","п. Гогино",68,"АО «Газпром газораспределение Челябинск»",{"$nulls":6},35,"январь","декабрь",null,null,null,33,"январь","декабрь"]
["64.","Брединский муниципальный район","п. Заозерный",1,"АО «Газпром газораспределение Челябинск»",null,null,null,1,"январь","декабрь"]
["65.","Брединский муниципальный район","п. Калининский",26,"АО «Газпром газораспределение Челябинск»",null,null,null,6,"январь","декабрь",16,"январь","декабрь",1,"январь","декабрь",3,"январь","декабрь"]
["66.","Брединский муниципальный район","п. Княженский",4,"АО «Газпром газораспределение Челябинск»",null,null,null,2,"январь","декабрь",2,"январь","декабрь"]
["67.","Брединский муниципальный район","п. Комсомольский",6,"АО «Газпром газораспределение Челябинск»",null,null,null,4,"январь","декабрь",2,"январь","декабрь"]
["68.","Брединский муниципальный район","п. Маяк",2,"АО «Газпром газораспределение Челябинск»",null,null,null,1,"январь","декабрь",1,"январь","декабрь"]
["69.","Брединский муниципальный район","п. Наследницкий",1,"АО «Газпром газораспределение Челябинск»",null,null,null,1,"январь","декабрь"]
["70.","Брединский муниципальный район","п. Новый",2,"АО «Газпром газораспределение Челябинск»",null,null,null,2,"январь","декабрь"]
["71.","Брединский муниципальный район","п. Павловский",13,"АО «Газпром газораспределение Челябинск»",null,null,null,3,"январь","декабрь",1,"январь","декабрь",9,"январь","декабрь"]
["72.","Брединский муниципальный район","п. Рымникский",18,"АО «Газпром газораспределение Челябинск»",null,null,null,6,"январь","декабрь",12,"январь","декабрь"]
["73.","Брединский муниципальный район","с. Боровое",5,"АО «Газпром газораспределение Челябинск»",null,null,null,4,"январь","декабрь",null,null,null,1,"январь","декабрь"]
["74.","Брединский муниципальный район","с. Мирное",1,"АО «Газпром газораспределение Челябинск»",null,null,null,1,"январь","декабрь"]
["75.","Варненский муниципальный район","п. Арчаглы-Аят",1,"АО «Газпром газораспределение Челябинск»",{"$nulls":6},1,"январь","декабрь"]
["76.","Варненский муниципальный район","п. Большевик",2,"АО «Газпром газораспределение Челябинск»",{"$nulls":6},2,"январь","декабрь"]
["77.","Варненский муниципальный район","п. Дружный",2,"АО «Газпром газораспределение Челябинск»",{"$nulls":6},2,"январь","декабрь"]
["78.","Варненский муниципальный район","п. Заречье",1,"АО «Газпром газораспределение Челябинск»",{"$nulls":6},1,"январь","декабрь"]
["79.","Варненский муниципальный район","п. Казановка",1,"АО «Газпром газораспределение Челябинск»",{"$nulls":6},1,"январь","декабрь"]
["80.","Варненский муниципальный район","п. Комсомольский",5,"АО «Газпром газораспределение Челябинск»",{"$nulls":9},5,"январь","декабрь"]
["81.","Варненский муниципальный район","п. Красная Заря",3,"АО «Газпром газораспределение Челябинск»",{"$nulls":9},3,"январь","декабрь"]
["82.","Варненский муниципальный район","п. Красноармейский",6,"АО «Газпром газораспределение Челябинск»",null,null,null,1,"январь","декабрь",null,null,null,5,"январь","декабрь"]
["83.","Варненский муниципальный район","п. Красный Октябрь",2,"АО «Газпром газораспределение Челябинск»",{"$nulls":6},2,"январь","декабрь"]
["84.","Варненский муниципальный район","п. Кызыл-Маяк",2,"АО «Газпром газораспределение Челябинск»",null,null,null,2,"январь","декабрь"]
["85.","Варненский муниципальный район","п. Новопокровка",22,"АО «Газпром газораспределение Челябинск»",null,null,null,4,"январь","декабрь",3,"январь","декабрь",15,"январь","декабрь"]
["86.","Варненский муниципальный район","п. Саламат",80,"АО «Газпром газораспределение Челябинск»",{"$nulls":12},80,"январь","декабрь"]
["87.","Варненский муниципальный район","п. Солнце",3,"АО «Газпром газораспределение Челябинск»",null,null,null,3,"январь","декабрь"]
["88.","Варненский муниципальный район","с. Алексеевка",24,"АО «Газпром газораспределение Челябинск»",null,null,null,18,"январь","декабрь",6,"январь","декабрь"]
["89.","Варненский муниципальный район","с. Бородиновка",1,"АО «Газпром газораспределение Челябинск»",{"$nulls":9},1,"январь","декабрь"]
["90.","Варненский муниципальный район","с. Варна",459,"АО «Газпром газораспределение Челябинск»",null,null,null,51,"январь","декабрь",134,"январь","декабрь",100,"январь","декабрь",174,"январь","декабрь"]
["91.","Варненский муниципальный район","с. Владимировка",3,"АО «Газпром газораспределение Челябинск»",null,null,null,1,"январь","декабрь",null,null,null,2,"январь","декабрь"]
["92.","Варненский муниципальный район","с. Катенино",4,"АО «Газпром газораспределение Челябинск»",{"$nulls":6},4,"январь","декабрь"]
["93.","Варненский муниципальный район","с. Кулевчи",175,"АО «Газпром газораспределение Челябинск»",null,null,null,3,"январь","декабрь",85,"январь","декабрь",21,"январь","декабрь",66,"январь","декабрь"]
["94.","Варненский муниципальный район","с. Лейпциг",58,"АО «Газпром газораспределение Челябинск»",null,null,null,16,"январь","декабрь",13,"январь","декабрь",29,"январь","декабрь"]
["95.","Варненский муниципальный район","с. Николаевка",1,"АО «Газпром газораспределение Челябинск»",null,null,null,1,"январь","декабрь"]
["96.","Верхнеуральский муниципальный район","г. Верхнеуральск",1168,"АО «Газпром газораспределение Челябинск»",null,null,null,217,"январь","декабрь",518,"январь","декабрь",197,"январь","декабрь",236,"январь","декабрь"]
["97.","Верхнеуральский муниципальный район","п. Карагайский",65,"АО «Газпром газораспределение Челябинск»",null,null,null,21,"январь","декабрь",28,"январь","декабрь",3,"январь","декабрь",13,"январь","декабрь"]
["98.","Верхнеуральский муниципальный район","п. Краснинский",17,"АО «Газпром газораспределение Челябинск»",null,null,null,12,"январь","декабрь",4,"январь","декабрь",1,"январь","декабрь"]
["99.","Верхнеуральский муниципальный район","п. Петропавловский",54,"АО «Газпром газораспределение Челябинск»",3,"январь","декабрь",13,"январь","декабрь",25,"январь","декабрь",13,"январь","декабрь"]
["100.","Верхнеуральский муниципальный район","п. Подольский",1,"АО «Газпром газораспределение Челябинск»",null,null,null,1,"январь","декабрь"]
["101.","Верхнеуральский муниципальный район","п. Смеловский",117,"АО «Газпром газораспределение Челябинск»",null,null,null,12,"январь","декабрь",10,"январь","декабрь",88,"январь","декабрь",7,"январь","декабрь"]
["102.","Верхнеуральский муниципальный район","п. Сухтелинский",16,"АО «Газпром газораспределение Челябинск»",null,null,null,12,"январь","декабрь",4,"январь","декабрь"]
["103.","Верхнеуральский муниципальный район","п. Урлядинский",175,"АО «Газпром газораспределение Челябинск»",{"$nulls":6},87,"январь","декабрь",86,"январь","декабрь",2,"январь","декабрь"]
["104.","Верхнеуральский муниципальный район","рп. Межозерный",199,"АО «Газпром газораспределение Челябинск»",null,null,null,79,"январь","декабрь",40,"январь","декабрь",28,"январь","декабрь",52,"январь","декабрь"]
["105.","Верхнеуральский муниципальный район","с. Форштадт",91,"АО «Газпром газораспределение Челябинск»",null,null,null,18,"январь","декабрь",42,"январь","декабрь",31,"январь","декабрь"]
["106.","Верхнеуфалейский городской округ","г .Верхний Уфалей",1653,"АО «Газпром газораспределение Челябинск»",null,null,null,110,"январь","декабрь",906,"январь","декабрь",359,"январь","декабрь",274,"январь","декабрь"]
["107.","Верхнеуфалейский городской округ","п. Октябрьский",60,"АО «Газпром газораспределение Челябинск»",{"$nulls":6},37,"январь","декабрь",15,"январь","декабрь",8,"январь","декабрь"]
["108.","Верхнеуфалейский городской округ","п. Пригородный",11,"АО «Газпром газораспределение Челябинск»",null,null,null,3,"январь","декабрь",8,"январь","декабрь"]
["109.","Верхнеуфалейский городской округ","п. Черемшанка",115,"АО «Газпром газораспределение Челябинск»",null,null,null,1,"январь","декабрь",107,"январь","декабрь",4,"январь","декабрь",3,"январь","декабрь"]
["110.","Еманжелинский муниципальный район","г. Еманжелинск",102,"АО «Газпром газораспределение Челябинск»",null,null,null,15,"январь","декабрь",47,"январь","декабрь",24,"январь","декабрь",21,"январь","декабрь"]
["111.","Еманжелинский муниципальный район","п. Борисовка",9,"АО «Газпром газораспределение Челябинск»",{"$nulls":6},4,"январь","декабрь",3,"январь","декабрь",2,"январь","декабрь"]
["112.","Еманжелинский муниципальный район","п. Ключи",5,"АО «Газпром газораспределение Челябинск»",{"$nulls":6},4,"январь","декабрь",1,"январь","декабрь"]
["113.","Еманжелинский муниципальный район","рп. Зауральский",88,"АО «Газпром газораспределение Челябинск»",null,null,null,8,"январь","декабрь",32,"январь","декабрь",34,"январь","декабрь",14,"январь","декабрь"]
["114.","Еманжелинский муниципальный район","рп. Красногорский",69,"АО «Газпром газораспределение Челябинск»",null,null,null,9,"январь","декабрь",26,"январь","декабрь",10,"январь","декабрь",23,"январь","декабрь"]
["115.","Еткульский муниципальный район","д. Журавлево",6,"АО «Газпром газораспределение Челябинск»",null,null,null,1,"январь","декабрь",5,"январь","декабрь"]
["116.","Еткульский муниципальный район","д. Кораблево",5,"АО «Газпром газораспределение Челябинск»",{"$nulls":6},3,"январь","декабрь",2,"январь","декабрь"]
["117.","Еткульский муниципальный район","д. Печенкино",19,"АО «Газпром газораспределение Челябинск»",null,null,null,6,"январь","декабрь",12,"январь","декабрь",1,"январь","декабрь"]
["118.","Еткульский муниципальный район","д. Погорелка",33,"АО «Газпром газораспределение Челябинск»",{"$nulls":6},1,"январь","декабрь",32,"январь","декабрь"]
["119.","Еткульский муниципальный район","д. Потапово",25,"АО «Газпром газораспределение Челябинск»",null,null,null,5,"январь","декабрь",10,"январь","декабрь",10,"январь","декабрь"]
["120.","Еткульский муниципальный район","д. Сарыкуль",18,"АО «Газпром газораспределение Челябинск»",null,null,null,16,"январь","декабрь",2,"январь","декабрь"]
["121.","Еткульский муниципальный район","д. Сухоруково",82,"АО «Газпром газораспределение Челябинск»",{"$nulls":6},74,"январь","декабрь",8,"январь","декабрь"]
["122.","Еткульский муниципальный район","п. Бектыш",60,"АО «Газпром газораспределение Челябинск»",null,null,null,5,"январь","декабрь",17,"январь","декабрь",7,"январь","декабрь",31,"январь","декабрь"]
["123.","Еткульский муниципальный район","п. Белоносово",52,"АО «Газпром газораспределение Челябинск»",null,null,null,1,"январь","декабрь",2,"январь","декабрь",1,"январь","декабрь",48,"январь","декабрь"]
["124.","Еткульский муниципальный район","с. Александровка",326,"АО «Газпром газораспределение Челябинск»",null,null,null,1,"январь","декабрь",91,"январь","декабрь",234,"январь","декабрь",{"$nulls":6},1,"январь","декабрь"]
["125.","Еткульский муниципальный район","с. Белоусово",158,"АО «Газпром газораспределение Челябинск»",null,null,null,15,"январь","декабрь",8,"январь","декабрь",135,"январь","декабрь"]
["126.","Еткульский муниципальный район","с. Долговка",42,"АО «Газпром газораспределение Челябинск»",{"$nulls":6},1,"январь","декабрь",41,"январь","декабрь"]
["127.","Еткульский муниципальный район","с. Еманжелинка",75,"АО «Газпром газораспределение Челябинск»",null,null,null,4,"январь","декабрь",3,"январь","декабрь",68,"январь","декабрь",{"$nulls":6},1,"январь","декабрь"]
["128.","Еткульский муниципальный район","с. Еткуль",234,"АО «Газпром газораспределение Челябинск»",null,null,null,20,"январь","декабрь",53,"январь","декабрь",113,"январь","декабрь",48,"январь","декабрь"]
["129.","Еткульский муниципальный район","с. Каратабан",39,"АО «Газпром газораспределение Челябинск»",null,null,null,2,"январь","декабрь",7,"январь","декабрь",5,"январь","декабрь",25,"январь","декабрь"]
["130.","Еткульский муниципальный район","с. Коелга",109,"АО «Газпром газораспределение Челябинск»",null,null,null,14,"январь","декабрь",59,"январь","декабрь",8,"январь","декабрь",28,"январь","декабрь"]
["131.","Еткульский муниципальный район","с. Лебедевка",69,"АО «Газпром газораспределение Челябинск»",null,null,null,1,"январь","декабрь",40,"январь","декабрь",16,"январь","декабрь",12,"январь","декабрь"]
["132.","Еткульский муниципальный район","с. Писклово",334,"АО «Газпром газораспределение Челябинск»",null,null,null,115,"январь","декабрь",15,"январь","декабрь",204,"январь","декабрь"]
["133.","Еткульский муниципальный район","с. Селезян",24,"АО «Газпром газораспределение Челябинск»",null,null,null,6,"январь","декабрь",7,"январь","декабрь",11,"январь","декабрь"]
["134.","Еткульский муниципальный район","с. Шеломенцево",18,"АО «Газпром газораспределение Челябинск»",null,null,null,8,"январь","декабрь",8,"январь","декабрь",2,"январь","декабрь"]
["135.","Златоустовский городской округ","г. Златоуст",4532,"АО «Газпром газораспределение Челябинск»",null,null,null,41,"январь","декабрь",371,"январь","декабрь",3698,"январь","декабрь",413,"январь","декабрь"]
["136.","Златоустовский городской округ","п. Тайнак",91,"АО «Газпром газораспределение Челябинск»",{"$nulls":6},27,"январь","декабрь",null,null,null,64,"январь","декабрь"]
["137.","Златоустовский городской округ","п. Центральный",7,"АО «Газпром газораспределение Челябинск»",{"$nulls":6},5,"январь","декабрь",null,null,null,2,"январь","декабрь"]
["138.","Карабашский городской округ","г. Карабаш",1199,"АО «Газпром газораспределение Челябинск»",null,null,null,1,"январь","декабрь",194,"январь","декабрь",34,"январь","декабрь",969,"январь","декабрь"]
["139.","Карабашский городской округ","п. Красный Камень",9,"АО «Газпром газораспределение Челябинск»",{"$nulls":6},9,"январь","декабрь"]
["140.","Карталинский муниципальный район","г. Карталы",192,"АО «Газпром газораспределение Челябинск»",null,null,null,32,"январь","декабрь",102,"январь","декабрь",32,"январь","декабрь",26,"январь","декабрь"]
["141.","Карталинский муниципальный район","п. Варшавка",14,"АО «Газпром газораспределение Челябинск»",null,null,null,9,"январь","декабрь",5,"январь","декабрь"]
["142.","Карталинский муниципальный район","п. Мичуринский",14,"АО «Газпром газораспределение Челябинск»",null,null,null,1,"январь","декабрь",2,"январь","декабрь",11,"январь","декабрь",{"$nulls":9},265,"январь","декабрь",247,"январь","декабрь",14,"январь","декабрь"]
["143.","Карталинский муниципальный район","п. Некрасово",26,"АО «Газпром газораспределение Челябинск»",null,null,null,22,"январь","декабрь",3,"январь","декабрь",1,"январь","декабрь"]
["144.","Карталинский муниципальный район","п. Новокаолиновый",67,"АО «Газпром газораспределение Челябинск»",null,null,null,9,"январь","декабрь",48,"январь","декабрь",6,"январь","декабрь"]
["145.","Карталинский муниципальный район","п. Санаторный",23,"АО «Газпром газораспределение Челябинск»",{"$nulls":6},13,"январь","декабрь",null,null,null,10,"январь","декабрь"]
["146.","Карталинский муниципальный район","п. Сенной",9,"АО «Газпром газораспределение Челябинск»",null,null,null,1,"январь","декабрь",null,null,null,8,"январь","декабрь"]
["147.","Карталинский муниципальный район","п. Снежный",10,"АО «Газпром газораспределение Челябинск»",null,null,null,4,"январь","декабрь",6,"январь","декабрь"]
["148.","Карталинский муниципальный район","п. Сухореченский",10,"АО «Газпром газораспределение Челябинск»",null,null,null,7,"январь","декабрь",3,"январь","декабрь"]
["149.","Карталинский муниципальный район","п. Центральный",53,"АО «Газпром газораспределение Челябинск»",null,null,null,4,"январь","декабрь",18,"январь","декабрь",8,"январь","декабрь",23,"январь","декабрь"]
["150.","Карталинский муниципальный район","п. Южно-Степной",8,"АО «Газпром газораспределение Челябинск»",{"$nulls":6},3,"январь","декабрь",4,"январь","декабрь",1,"январь","декабрь"]
["151.","Карталинский муниципальный район","п. Джабык, железнодорожная станция",39,"АО «Газпром газораспределение Челябинск»",null,null,null,10,"январь","декабрь",21,"январь","декабрь"]
["152.","Карталинский муниципальный район","п. Запасное, железнодорожная станция",51,"АО «Газпром газораспределение Челябинск»",null,null,null,2,"январь","декабрь",24,"январь","декабрь",2,"январь","декабрь"]
["153.","Карталинский муниципальный район","с. Анненское",355,"АО «Газпром газораспределение Челябинск»",null,null,null,8,"январь","декабрь",111,"январь","декабрь",222,"январь","декабрь",8,"январь","декабрь"]
["154.","Карталинский муниципальный район","с. Великопетровка",47,"АО «Газпром газораспределение Челябинск»",null,null,null,21,"январь","декабрь",26,"январь","декабрь"]
["155.","Карталинский муниципальный район","с. Еленинка",27,"АО «Газпром газораспределение Челябинск»",null,null,null,5,"январь","декабрь",17,"январь","декабрь"]
["156.","Карталинский муниципальный район","с. Неплюевка",126,"АО «Газпром газораспределение Челябинск»",null,null,null,7,"январь","декабрь",53,"январь","декабрь",null,null,null,66,"январь","декабрь"]
["157.","Карталинский муниципальный район","с. Новониколаевка",3,"АО «Газпром газораспределение Челябинск»",null,null,null,1,"январь","декабрь",2,"январь","декабрь"]
["158.","Каслинский муниципальный район","г. Касли",1154,"АО «Газпром газораспределение Челябинск»",null,null,null,40,"январь","декабрь",460,"январь","декабрь",584,"январь","декабрь",70,"январь","декабрь"]
["159.","Каслинский муниципальный район","п. Береговой",80,"АО «Газпром газораспределение Челябинск»",null,null,null,3,"январь","декабрь",74,"январь","декабрь",3,"январь","декабрь"]
["160.","Каслинский муниципальный район","п. Воздвиженка",184,"АО «Газпром газораспределение Челябинск»",{"$nulls":6},152,"январь","декабрь",32,"январь","декабрь"]
["161.","Каслинский муниципальный район","п. Черкаскуль",21,"АО «Газпром газораспределение Челябинск»",{"$nulls":6},20,"январь","декабрь",1,"январь","декабрь"]
["162.","Каслинский муниципальный район","п. Маук, железнодорожная станция",157,"АО «Газпром газораспределение Челябинск»",null,null,null,7,"январь","декабрь",80,"январь","декабрь",32,"январь","декабрь",38,"январь","декабрь"]
["163.","Каслинский муниципальный район","рп. Вишневогорск",595,"АО «Газпром газораспределение Челябинск»",null,null,null,5,"январь","декабрь",138,"январь","декабрь",5,"январь","декабрь",447,"январь","декабрь"]
["164.","Каслинский муниципальный район","с. Булзи",76,"АО «Газпром газораспределение Челябинск»",null,null,null,16,"январь","декабрь",49,"январь","декабрь",11,"январь","декабрь"]
["165.","Каслинский муниципальный район","с. Воскресенское",14,"АО «Газпром газораспределение Челябинск»",{"$nulls":12},14,"январь","декабрь"]
["166.","Каслинский муниципальный район","с. Огневское",257,"АО «Газпром газораспределение Челябинск»",null,null,null,4,"январь","декабрь",66,"январь","декабрь",182,"январь","декабрь",5,"январь","декабрь"]
["167.","Каслинский муниципальный район","с. Тюбук",199,"АО «Газпром газораспределение Челябинск»",null,null,null,14,"январь","декабрь",170,"январь","декабрь",15,"январь","декабрь",1,"январь","декабрь"]
["168.","Каслинский муниципальный район","с. Шаблиш",1,"АО «Газпром газораспределение Челябинск»",{"$nulls":12},1,"январь","декабрь"]
["169.","Каслинский муниципальный район","с.Шабурово",13,"АО «Газпром газораспределение Челябинск»",null,null,null,3,"январь","декабрь",10,"январь","декабрь"]
["170.","Каслинский муниципальный район","с. Щербаковка",48,"АО «Газпром газораспределение Челябинск»",null,null,null,2,"январь","декабрь",19,"январь","декабрь",27,"январь","декабрь"]
["171.","Каслинский муниципальный район","с. Юшково",49,"АО «Газпром газораспределение Челябинск»",{"$nulls":6},46,"январь","декабрь",3,"январь","декабрь"]
["172.","Каслинский муниципальный район","тер. СНТ Первомайское",1,"АО «Газпром газораспределение Челябинск»",{"$nulls":6},1,"январь","декабрь"]
["173.","Катав-ивановский муниципальный район","г. Катав-Ивановск",2724,"АО «Газпром газораспределение Челябинск»",{"$nulls":6},280,"январь","декабрь",2246,"январь","декабрь",195,"январь","декабрь"]
["174.","Катав-ивановский муниципальный район","г. Юрюзань",2422,"АО «Газпром газораспределение Челябинск»",null,null,null,35,"январь","декабрь",1076,"январь","декабрь",439,"январь","декабрь",872,"январь","декабрь"]
["175.","Катав-ивановский муниципальный район","п. Совхозный",1,"АО «Газпром газораспределение Челябинск»",{"$nulls":9},1,"январь","декабрь"]
["176.","Катав-ивановский муниципальный район","п. Шарлаш",1,"АО «Газпром газораспределение Челябинск»",{"$nulls":6},1,"январь","декабрь"]
["177.","Катав-ивановский муниципальный район","с. Орловка",150,"АО «Газпром газораспределение Челябинск»",null,null,null,57,"январь","декабрь",37,"январь","декабрь",56,"январь","декабрь"]
["178.","Кизильский муниципальный район","п. Измайловский",18,"АО «Газпром газораспределение Челябинск»",null,null,null,3,"январь","декабрь",14,"январь","декабрь",null,null,null,1,"январь","декабрь"]
["179.","Кизильский муниципальный район","п. Карабулак",111,"АО «Газпром газораспределение Челябинск»",null,null,null,100,"январь","декабрь",7,"январь","декабрь",4,"январь","декабрь"]
["180.","Кизильский муниципальный район","п. Пролетарка",82,"АО «Газпром газораспределение Челябинск»",null,null,null,1,"январь","декабрь",27,"январь","декабрь",1,"январь","декабрь",53,"январь","декабрь"]
["181.","Кизильский муниципальный район","п. Сыртинский",33,"АО «Газпром газораспределение Челябинск»",null,null,null,9,"январь","декабрь",16,"январь","декабрь",5,"январь","декабрь",3,"январь","декабрь"]
["182.","Кизильский муниципальный район","п. Увальский",19,"АО «Газпром газораспределение Челябинск»",null,null,null,7,"январь","декабрь",10,"январь","декабрь",2,"январь","декабрь"]
["183.","Кизильский муниципальный район","с. Кизильское",165,"АО «Газпром газораспределение Челябинск»",null,null,null,111,"январь","декабрь",53,"январь","декабрь",1,"январь","декабрь"]
["184.","Кизильский муниципальный район","с. Обручевка",6,"АО «Газпром газораспределение Челябинск»",null,null,null,2,"январь","декабрь",4,"январь","декабрь"]
["185.","Копейский городской округ","г. Копейск",1517,"АО «Газпром газораспределение Челябинск»",2,"январь","декабрь",167,"январь","декабрь",341,"январь","декабрь",349,"январь","декабрь",635,"январь","декабрь",24,"январь","декабрь"]
["186.","Копейский городской округ","п. Заозерный",22,"АО «Газпром газораспределение Челябинск»",{"$nulls":9},22,"январь","декабрь"]
["187.","Копейский городской округ","с. Калачево",27,"АО «Газпром газораспределение Челябинск»",null,null,null,2,"январь","декабрь",13,"январь","декабрь",8,"январь","декабрь",4,"январь","декабрь"]
["188.","Копейский городской округ","с. Синеглазово",22,"АО «Газпром газораспределение Челябинск»",null,null,null,2,"январь","декабрь",39,"январь","декабрь",5,"январь","декабрь",6,"январь","декабрь"]
["189.","Коркинский муниципальный район","г. Коркино",268,"АО «Газпром газораспределение Челябинск»",null,null,null,26,"январь","декабрь",124,"январь","декабрь",25,"январь","декабрь",94,"январь","декабрь"]
["190.","Коркинский муниципальный район","д. Дубровка",75,"АО «Газпром газораспределение Челябинск»",null,null,null,2,"январь","декабрь",4,"январь","декабрь",69,"январь","декабрь"]
["191.","Коркинский муниципальный район","д. Шумаки",6,"АО «Газпром газораспределение Челябинск»",null,null,null,2,"январь","декабрь",1,"январь","декабрь",3,"январь","декабрь"]
["192.","Коркинский муниципальный район","п. Саксан, остановочный пункт",2,"АО «Газпром газораспределение Челябинск»",{"$nulls":9},2,"январь","декабрь"]
["193.","Коркинский муниципальный район","п. Дубровка-Челябинская, железнодорожная станция",296,"АО «Газпром газораспределение Челябинск»",null,null,null,2,"январь","декабрь",63,"январь","декабрь",231,"январь","декабрь"]
["194.","Коркинский муниципальный район","рп. Первомайский",44,"АО «Газпром газораспределение Челябинск»",null,null,null,2,"январь","декабрь",21,"январь","декабрь",3,"январь","декабрь",18,"январь","декабрь",{"$nulls":6},1,"январь","декабрь"]
["195.","Коркинский муниципальный район","рп. Роза",104,"АО «Газпром газораспределение Челябинск»",null,null,null,13,"январь","декабрь",30,"январь","декабрь",14,"январь","декабрь",47,"январь","декабрь"]
["196.","Красноармейский муниципальный район","д. Боровое",2,"АО «Газпром газораспределение Челябинск»",{"$nulls":6},1,"январь","декабрь",1,"январь","декабрь"]
["197.","Красноармейский муниципальный район","д. Ильино",192,"АО «Газпром газораспределение Челябинск»",null,null,null,1,"январь","декабрь",32,"январь","декабрь",null,null,null,159,"январь","декабрь"]
["198.","Красноармейский муниципальный район","д. Камышинка",48,"АО «Газпром газораспределение Челябинск»",{"$nulls":6},6,"январь","декабрь",1,"январь","декабрь",null,null,null,41,"январь","декабрь"]
["199.","Красноармейский муниципальный район","д. Канашево",1,"АО «Газпром газораспределение Челябинск»",null,null,null,1,"январь","декабрь"]
["200.","Красноармейский муниципальный район","д. Пашнино",3,"АО «Газпром газораспределение Челябинск»",{"$nulls":9},3,"январь","декабрь"]
["201.","Красноармейский муниципальный район","д. Пашнино 1-е",47,"АО «Газпром газораспределение Челябинск»",null,null,null,4,"январь","декабрь",4,"январь","декабрь",2,"январь","декабрь",null,null,null,2,"январь","декабрь"]
["202.","Красноармейский муниципальный район","д. Пашнино 2-е",14,"АО «Газпром газораспределение Челябинск»",null,null,null,9,"январь","декабрь",3,"январь","декабрь",null,null,null,2,"январь","декабрь"]
["203.","Красноармейский муниципальный район","д. Теренкуль",19,"АО «Газпром газораспределение Челябинск»",{"$nulls":6},2,"январь","декабрь",null,null,null,17,"январь","декабрь"]
["204.","Красноармейский муниципальный район","д. Тирикуль",53,"АО «Газпром газораспределение Челябинск»",{"$nulls":12},53,"январь","декабрь"]
["205.","Красноармейский муниципальный район","д. Худяково",4,"АО «Газпром газораспределение Челябинск»",null,null,null,2,"январь","декабрь",2,"январь","декабрь"]
["206.","Красноармейский муниципальный район","д. Чурилово",1,"АО «Газпром газораспределение Челябинск»",{"$nulls":9},1,"январь","декабрь"]
["207.","Красноармейский муниципальный район","д. Шибаново",90,"АО «Газпром газораспределение Челябинск»",{"$nulls":6},29,"январь","декабрь",1,"январь","декабрь",60,"январь","декабрь"]
["208.","Красноармейский муниципальный район","п. Березово",123,"АО «Газпром газораспределение Челябинск»",{"$nulls":6},37,"январь","декабрь",13,"январь","декабрь",74,"январь","декабрь"]
["209.","Красноармейский муниципальный район","п. Дубровка",21,"АО «Газпром газораспределение Челябинск»",null,null,null,2,"январь","декабрь",6,"январь","декабрь",null,null,null,4,"январь","декабрь",9,"январь","декабрь"]
["210.","Красноармейский муниципальный район","п. Лазурный",522,"АО «Газпром газораспределение Челябинск»",null,null,null,18,"январь","декабрь",103,"январь","декабрь",315,"январь","декабрь",86,"январь","декабрь"]
["211.","Красноармейский муниципальный район","п. Лесной",19,"АО «Газпром газораспределение Челябинск»",null,null,null,5,"январь","декабрь",9,"январь","декабрь",1,"январь","декабрь",3,"январь","декабрь",1,"январь","декабрь"]
["212.","Красноармейский муниципальный район","п. Луговой",25,"АО «Газпром газораспределение Челябинск»",null,null,null,3,"январь","декабрь",11,"январь","декабрь",null,null,null,11,"январь","декабрь"]
["213.","Красноармейский муниципальный район","п. Мирный",47,"АО «Газпром газораспределение Челябинск»",null,null,null,6,"январь","декабрь",24,"январь","декабрь",7,"январь","декабрь",6,"январь","декабрь",4,"январь","декабрь"]
["214.","Красноармейский муниципальный район","п. Новый",11,"АО «Газпром газораспределение Челябинск»",null,null,null,3,"январь","декабрь",5,"январь","декабрь",2,"январь","декабрь",1,"январь","декабрь"]
["215.","Красноармейский муниципальный район","п. Озерный",55,"АО «Газпром газораспределение Челябинск»",null,null,null,19,"январь","декабрь",23,"январь","декабрь",12,"январь","декабрь",1,"январь","декабрь"]
["216.","Красноармейский муниципальный район","п. Октябрьский",21,"АО «Газпром газораспределение Челябинск»",null,null,null,2,"январь","декабрь",3,"январь","декабрь",9,"январь","декабрь",7,"январь","декабрь"]
["217.","Красноармейский муниципальный район","п. Песчаный",173,"АО «Газпром газораспределение Челябинск»",null,null,null,3,"январь","декабрь",102,"январь","декабрь",1,"январь","декабрь",41,"январь","декабрь",26,"январь","декабрь"]
["218.","Красноармейский муниципальный район","п. Петровский",258,"АО «Газпром газораспределение Челябинск»",null,null,null,13,"январь","декабрь",63,"январь","декабрь",63,"январь","декабрь",118,"январь","декабрь",4,"январь","декабрь"]
["219.","Красноармейский муниципальный район","п. Слава",97,"АО «Газпром газораспределение Челябинск»",1,"январь","декабрь",28,"январь","декабрь",24,"январь","декабрь",8,"январь","декабрь",null,null,null,36,"январь","декабрь"]
["220.","Красноармейский муниципальный район","п. Черемушки",78,"АО «Газпром газораспределение Челябинск»",null,null,null,7,"январь","декабрь",12,"январь","декабрь",3,"январь","декабрь",56,"январь","декабрь"]
["221.","Красноармейский муниципальный район","с. Алабуга",7,"АО «Газпром газораспределение Челябинск»",null,null,null,1,"январь","декабрь",5,"январь","декабрь",null,null,null,1,"январь","декабрь"]
["222.","Красноармейский муниципальный район","с. Ачликуль",67,"АО «Газпром газораспределение Челябинск»",null,null,null,8,"январь","декабрь",48,"январь","декабрь",11,"январь","декабрь"]
["223.","Красноармейский муниципальный район","с. Бродокалмак",29,"АО «Газпром газораспределение Челябинск»",null,null,null,1,"январь","декабрь",19,"январь","декабрь",1,"январь","декабрь",null,null,null,8,"январь","декабрь"]
["224.","Красноармейский муниципальный район","с.Канашево",60,"АО «Газпром газораспределение Челябинск»",null,null,null,22,"январь","декабрь",26,"январь","декабрь",8,"январь","декабрь",3,"январь","декабрь",1,"январь","декабрь"]
["225.","Красноармейский муниципальный район","с. Миасское",890,"АО «Газпром газораспределение Челябинск»",1,"январь","декабрь",46,"январь","декабрь",724,"январь","декабрь",20,"январь","декабрь",69,"январь","декабрь",30,"январь","декабрь"]
["226.","Красноармейский муниципальный район","с. Пашнино",1,"АО «Газпром газораспределение Челябинск»",null,null,null,1,"январь","декабрь"]
["227.","Красноармейский муниципальный район","с. Русская Теча",12,"АО «Газпром газораспределение Челябинск»",null,null,null,6,"январь","декабрь",5,"январь","декабрь",1,"январь","декабрь"]
["228.","Красноармейский муниципальный район","с .Сугояк",10,"АО «Газпром газораспределение Челябинск»",null,null,null,2,"январь","декабрь",4,"январь","декабрь",2,"январь","декабрь",2,"январь","декабрь"]
["229.","Красноармейский муниципальный район","с. Харино",312,"АО «Газпром газораспределение Челябинск»",null,null,null,2,"январь","декабрь",7,"январь","декабрь",303,"январь","декабрь"]
["230.","Красноармейский муниципальный район","с. Черкасово",6,"АО «Газпром газораспределение Челябинск»",null,null,null,5,"январь","декабрь",1,"январь","декабрь"]
["231.","Красноармейский муниципальный район","с. Шумово",24,"АО «Газпром газораспределение Челябинск»",null,null,null,6,"январь","декабрь",10,"январь","декабрь",2,"январь","декабрь",3,"январь","декабрь",3,"январь","декабрь"]
["232.","Красноармейский муниципальный район","х. Северный",3,"АО «Газпром газораспределение Челябинск»",{"$nulls":6},3,"январь","декабрь",{"$nulls":9},4,"январь","декабрь"]
["233.","Кунашакский муниципальный район","д. Аминева",5,"АО «Газпром газораспределение Челябинск»",{"$nulls":6},3,"январь","декабрь"]
["234.","Кунашакский муниципальный район","д. Канзафарова",7,"АО «Газпром газораспределение Челябинск»",{"$nulls":6},3,"январь","декабрь"]
["235.","Кунашакский муниципальный район","д. Карино",1,"АО «Газпром газораспределение Челябинск»",{"$nulls":6},1,"январь","декабрь"]
["236.","Кунашакский муниципальный район","д. Кулужбаева",16,"АО «Газпром газораспределение Челябинск»",null,null,null,7,"январь","декабрь",2,"январь","декабрь"]
["237.","Кунашакский муниципальный район","д. Малый Куяш",53,"АО «Газпром газораспределение Челябинск»",{"$nulls":6},38,"январь","декабрь",15,"январь","декабрь"]
["238.","Кунашакский муниципальный район","д. Усманова",63,"АО «Газпром газораспределение Челябинск»",null,null,null,1,"январь","декабрь",45,"январь","декабрь",13,"январь","декабрь"]
["239.","Кунашакский муниципальный район","д. Чебакуль",28,"АО «Газпром газораспределение Челябинск»",null,null,null,1,"январь","декабрь",17,"январь","декабрь",{"$nulls":9},8,"январь","декабрь"]
["240.","Кунашакский муниципальный район","д. Юлдашева",41,"АО «Газпром газораспределение Челябинск»",{"$nulls":6},21,"январь","декабрь",1,"январь","декабрь",{"$nulls":6},6,"январь","декабрь",17,"январь","декабрь"]
["241.","Кунашакский муниципальный район","д. Ямантаева",27,"АО «Газпром газораспределение Челябинск»",{"$nulls":6},4,"январь","декабрь"]
["242.","Кунашакский муниципальный район","п. Дружный",8,"АО «Газпром газораспределение Челябинск»",{"$nulls":6},4,"январь","декабрь"]
["243.","Кунашакский муниципальный район","п. Лесной",1,"АО «Газпром газораспределение Челябинск»",{"$nulls":18},5,"январь","декабрь"]
["244.","Кунашакский муниципальный район","п. Муслюмово, железнодорожная станция",79,"АО «Газпром газораспределение Челябинск»",null,null,null,4,"январь","декабрь",51,"январь","декабрь",1,"январь","декабрь"]
["245.","Кунашакский муниципальный район","с. Большой Куяш",293,"АО «Газпром газораспределение Челябинск»",null,null,null,165,"январь","декабрь",103,"январь","декабрь",25,"январь","декабрь"]
["246.","Кунашакский муниципальный район","с. Кунашак",287,"АО «Газпром газораспределение Челябинск»",null,null,null,7,"январь","декабрь",167,"январь","декабрь",4,"январь","декабрь"]
["247.","Кунашакский муниципальный район","с. Муслюмово",1,"АО «Газпром газораспределение Челябинск»",{"$nulls":6},1,"январь","декабрь"]
["248.","Кунашакский муниципальный район","с. Новобурино",23,"АО «Газпром газораспределение Челябинск»",null,null,null,11,"январь","декабрь",10,"январь","декабрь",null,null,null,2,"январь","декабрь"]
["249.","Кунашакский муниципальный район","с. Сары",24,"АО «Газпром газораспределение Челябинск»",{"$nulls":6},11,"январь","декабрь",7,"январь","декабрь"]
["250.","Кунашакский муниципальный район","с. Татарская Караболка",59,"АО «Газпром газораспределение Челябинск»",null,null,null,1,"январь","декабрь",38,"январь","декабрь",7,"январь","декабрь"]
["251.","Кунашакский муниципальный район","с. Усть-Багаряк",51,"АО «Газпром газораспределение Челябинск»",null,null,null,14,"январь","декабрь",34,"январь","декабрь",2,"январь","декабрь"]
["252.","Кунашакский муниципальный район","с. Халитово",30,"АО «Газпром газораспределение Челябинск»",null,null,null,1,"январь","декабрь",14,"январь","декабрь"]
["253.","Кусинский муниципальный район","г. Куса",394,"АО «Газпром газораспределение Челябинск»",null,null,null,110,"январь","декабрь",224,"январь","декабрь",21,"январь","декабрь",38,"январь","декабрь"]
["254.","Кусинский муниципальный район","д. Каскиново",123,"АО «Газпром газораспределение Челябинск»",{"$nulls":6},37,"январь","декабрь",1,"январь","декабрь",85,"январь","декабрь"]
["255.","Кусинский муниципальный район","п. Ковали",119,"АО «Газпром газораспределение Челябинск»",{"$nulls":6},16,"январь","декабрь",80,"январь","декабрь",23,"январь","декабрь"]
["256.","Кусинский муниципальный район","п. Никольский",70,"АО «Газпром газораспределение Челябинск»",{"$nulls":6},27,"январь","декабрь",null,null,null,43,"январь","декабрь"]
["257.","Кусинский муниципальный район","рп. Магнитка",583,"АО «Газпром газораспределение Челябинск»",null,null,null,58,"январь","декабрь",234,"январь","декабрь",106,"январь","декабрь",185,"январь","декабрь"]
["258.","Кусинский муниципальный район","с. Злоказово",373,"АО «Газпром газораспределение Челябинск»",{"$nulls":6},157,"январь","декабрь",5,"январь","декабрь",211,"январь","декабрь"]
["259.","Кусинский муниципальный район","с. Медведевка",409,"АО «Газпром газораспределение Челябинск»",null,null,null,1,"январь","декабрь",257,"январь","декабрь",null,null,null,150,"январь","декабрь"]
["260.","Кусинский муниципальный район","с. Петропавловка",26,"АО «Газпром газораспределение Челябинск»",null,null,null,9,"январь","декабрь",13,"январь","декабрь",4,"январь","декабрь",3,"январь","декабрь"]
["261.","Кыштымский городской округ","г. Кыштым",1096,"АО «Газпром газораспределение Челябинск»",null,null,null,74,"январь","декабрь",127,"январь","декабрь",572,"январь","декабрь",321,"январь","декабрь"]
["262.","Кыштымский городской округ","п. Канифольный",1,"АО «Газпром газораспределение Челябинск»",{"$nulls":12},1,"январь","декабрь"]
["263.","Кыштымский городской округ","п. Увильды",8,"АО «Газпром газораспределение Челябинск»",null,null,null,2,"январь","декабрь",6,"январь","декабрь"]
["264.","Магнитогорский городской округ","г. Магнитогорск",190,"АО «Газпром газораспределение Челябинск»",null,null,null,81,"январь","декабрь",107,"январь","декабрь",5,"январь","декабрь"]
["265.","Миасский городской округ","г. Миасс",582,"АО «Газпром газораспределение Челябинск»",null,null,null,78,"январь","декабрь",407,"январь","декабрь",61,"январь","декабрь",35,"январь","декабрь"]
["266.","Миасский городской округ","п. Ленинск",12,"АО «Газпром газораспределение Челябинск»",null,null,null,3,"январь","декабрь",9,"январь","декабрь"]
["267.","Миасский городской округ","п. Северные Печи",17,"АО «Газпром газораспределение Челябинск»",null,null,null,1,"январь","декабрь",null,null,null,16,"январь","декабрь"]
["268.","Миасский городской округ","п. Селянкино",61,"АО «Газпром газораспределение Челябинск»",{"$nulls":6},50,"январь","декабрь",3,"январь","декабрь",8,"январь","декабрь"]
["269.","Миасский городской округ","п. Тургояк",185,"АО «Газпром газораспределение Челябинск»",null,null,null,8,"январь","декабрь",76,"январь","декабрь",95,"январь","декабрь",6,"январь","декабрь"]
["270.","Миасский городской округ","с. Смородинка",25,"АО «Газпром газораспределение Челябинск»",null,null,null,5,"январь","декабрь",15,"январь","декабрь",5,"январь","декабрь"]
["271.","Миасский городской округ","с. Сыростан",2,"АО «Газпром газораспределение Челябинск»",{"$nulls":6},2,"январь","декабрь"]
["272.","Миасский городской округ","с. Устиново",44,"АО «Газпром газораспределение Челябинск»",null,null,null,27,"январь","декабрь",14,"январь","декабрь",3,"январь","декабрь"]
["273.","Миасский городской округ","с. Черновское",75,"АО «Газпром газораспределение Челябинск»",1,"январь","декабрь",20,"январь","декабрь",45,"январь","декабрь",6,"январь","декабрь",3,"январь","декабрь",null,null,null,6,"январь","декабрь"]
["274.","Нагайбакский муниципальный район","п. Балканы",30,"АО «Газпром газораспределение Челябинск»",1,"январь","декабрь",4,"январь","декабрь",2,"январь","декабрь",23,"январь","декабрь"]
["275.","Нагайбакский муниципальный район","п. Гумбейский",44,"АО «Газпром газораспределение Челябинск»",null,null,null,6,"январь","декабрь",30,"январь","декабрь",8,"январь","декабрь"]
["276.","Нагайбакский муниципальный район","п. Знаменка",93,"АО «Газпром газораспределение Челябинск»",null,null,null,7,"январь","декабрь",4,"январь","декабрь",82,"январь","декабрь"]
["277.","Нагайбакский муниципальный район","п. Кассельский",3,"АО «Газпром газораспределение Челябинск»",null,null,null,2,"январь","декабрь",1,"январь","декабрь"]
["278.","Нагайбакский муниципальный район","п. Куропаткинский",4,"АО «Газпром газораспределение Челябинск»",null,null,null,1,"январь","декабрь",null,null,null,3,"январь","декабрь"]
["279.","Нагайбакский муниципальный район","п. Нагайбакский",37,"АО «Газпром газораспределение Челябинск»",null,null,null,3,"январь","декабрь",19,"январь","декабрь",null,null,null,15,"январь","декабрь"]
["280.","Нагайбакский муниципальный район","п. Остроленский",4,"АО «Газпром газораспределение Челябинск»",null,null,null,3,"январь","декабрь",1,"январь","декабрь"]
["281.","Нагайбакский муниципальный район","п. Переселенческий",22,"АО «Газпром газораспределение Челябинск»",null,null,null,7,"январь","декабрь",10,"январь","декабрь",5,"январь","декабрь"]
["282.","Нагайбакский муниципальный район","п. Придорожный",11,"АО «Газпром газораспределение Челябинск»",null,null,null,5,"январь","декабрь",4,"январь","декабрь",2,"январь","декабрь"]
["283.","Нагайбакский муниципальный район","п. Северный",201,"АО «Газпром газораспределение Челябинск»",{"$nulls":6},163,"январь","декабрь",37,"январь","декабрь",1,"январь","декабрь"]
["284.","Нагайбакский муниципальный район","п. Совхозный",34,"АО «Газпром газораспределение Челябинск»",{"$nulls":6},33,"январь","декабрь",1,"январь","декабрь"]
["285.","Нагайбакский муниципальный район","рп. Южный",212,"АО «Газпром газораспределение Челябинск»",null,null,null,2,"январь","декабрь",146,"январь","декабрь",15,"январь","декабрь",49,"январь","декабрь"]
["286.","Нагайбакский муниципальный район","с. Крупское",22,"АО «Газпром газораспределение Челябинск»",null,null,null,6,"январь","декабрь",9,"январь","декабрь",7,"январь","декабрь"]
["287.","Нагайбакский муниципальный район","с. Париж",206,"АО «Газпром газораспределение Челябинск»",null,null,null,126,"январь","декабрь",72,"январь","декабрь",5,"январь","декабрь",1,"январь","декабрь"]
["288.","Нагайбакский муниципальный район","с. Фершампенуаз",248,"АО «Газпром газораспределение Челябинск»",null,null,null,135,"январь","декабрь",63,"январь","декабрь",50,"январь","декабрь"]
["289.","Нязепетровский муниципальный район","г. Нязепетровск",2599,"АО «Газпром газораспределение Челябинск»",null,null,null,102,"январь","декабрь",1199,"январь","декабрь",256,"январь","декабрь",1042,"январь","декабрь",null,null,null,35,"январь","декабрь"]
["290.","Озерский городской округ","п. Новогорный",2,"АО «Газпром газораспределение Челябинск»",{"$nulls":6},1,"январь","декабрь",1,"январь","декабрь"]
["291.","Октябрьский муниципальный район","д. Горелое",1,"АО «Газпром газораспределение Челябинск»",{"$nulls":6},1,"январь","декабрь"]
["292.","Октябрьский муниципальный район","д. Жохово",5,"АО «Газпром газораспределение Челябинск»",null,null,null,1,"январь","декабрь",4,"январь","декабрь"]
["293.","Октябрьский муниципальный район","д. Лебедки",1,"АО «Газпром газораспределение Челябинск»",{"$nulls":6},1,"январь","декабрь"]
["294.","Октябрьский муниципальный район","д. Сосновенькое",33,"АО «Газпром газораспределение Челябинск»",{"$nulls":6},33,"январь","декабрь"]
["295.","Октябрьский муниципальный район","д. Шипкино",8,"АО «Газпром газораспределение Челябинск»",1,"январь","декабрь",5,"январь","декабрь",1,"январь","декабрь",1,"январь","декабрь"]
["296.","Октябрьский муниципальный район","с. Каракульское",10,"АО «Газпром газораспределение Челябинск»",null,null,null,3,"январь","декабрь",7,"январь","декабрь"]
["297.","Октябрьский муниципальный район","с. Кочердык",9,"АО «Газпром газораспределение Челябинск»",null,null,null,2,"январь","декабрь",7,"январь","декабрь"]
["298.","Октябрьский муниципальный район","с. Октябрьское",180,"АО «Газпром газораспределение Челябинск»",6,"январь","декабрь",90,"январь","декабрь",78,"январь","декабрь",5,"январь","декабрь"]
["299.","Октябрьский муниципальный район","с. Подовинное",13,"АО «Газпром газораспределение Челябинск»",null,null,null,6,"январь","декабрь",7,"январь","декабрь"]
["300.","Октябрьский муниципальный район","с. Шипкино",2,"АО «Газпром газораспределение Челябинск»",{"$nulls":6},2,"январь","декабрь"]
["301.","Пластовский муниципальный район","г. Верхний Уфалей",2,"АО «Газпром газораспределение Челябинск»",{"$nulls":9},2,"январь","декабрь"]
["302.","Пластовский муниципальный район","г. Пласт",253,"АО «Газпром газораспределение Челябинск»",3,"январь","декабрь",116,"январь","декабрь",118,"январь","декабрь",16,"январь","декабрь"]
["303.","Пластовский муниципальный район","п. Котлик",1,"АО «Газпром газораспределение Челябинск»",null,null,null,1,"январь","декабрь"]
["304.","Пластовский муниципальный район","с. Борисовка",8,"АО «Газпром газораспределение Челябинск»",null,null,null,1,"январь","декабрь",6,"январь","декабрь",1,"январь","декабрь"]
["305.","Пластовский муниципальный район","с. Верхняя Кабанка",1,"АО «Газпром газораспределение Челябинск»",{"$nulls":6},1,"январь","декабрь"]
["306.","Пластовский муниципальный район","с. Верхняя Санарка",26,"АО «Газпром газораспределение Челябинск»",null,null,null,2,"январь","декабрь",22,"январь","декабрь",2,"январь","декабрь"]
["307.","Пластовский муниципальный район","с. Демарино",1,"АО «Газпром газораспределение Челябинск»",{"$nulls":6},1,"январь","декабрь"]
["308.","Пластовский муниципальный район","с. Демарино (Центральная усадьба)",6,"АО «Газпром газораспределение Челябинск»",null,null,null,3,"январь","декабрь",3,"январь","декабрь"]
["309.","Пластовский муниципальный район","с. Котлик",1,"АО «Газпром газораспределение Челябинск»",{"$nulls":9},1,"январь","декабрь"]
["310.","Пластовский муниципальный район","с. Кочкарь",12,"АО «Газпром газораспределение Челябинск»",null,null,null,4,"январь","декабрь",8,"январь","декабрь"]
["311.","Пластовский муниципальный район","с. Кукушка",3,"АО «Газпром газораспределение Челябинск»",null,null,null,1,"январь","декабрь",2,"январь","декабрь"]
["312.","Пластовский муниципальный район","с. Михайловка",2,"АО «Газпром газораспределение Челябинск»",null,null,null,1,"январь","декабрь",1,"январь","декабрь"]
["313.","Пластовский муниципальный район","с. Новый Кумляк",8,"АО «Газпром газораспределение Челябинск»",null,null,null,6,"январь","декабрь",2,"январь","декабрь"]
["314.","Пластовский муниципальный район","с. Поляновка",3,"АО «Газпром газораспределение Челябинск»",null,null,null,2,"январь","декабрь",1,"январь","декабрь"]
["315.","Пластовский муниципальный район","с. Радиомайка",4,"АО «Газпром газораспределение Челябинск»",null,null,null,1,"январь","декабрь",3,"январь","декабрь"]
["316.","Пластовский муниципальный район","с. Старый Кумляк",6,"АО «Газпром газораспределение Челябинск»",null,null,null,4,"январь","декабрь",2,"январь","декабрь"]
["317.","Пластовский муниципальный район","с. Степнинское",2,"АО «Газпром газораспределение Челябинск»",{"$nulls":6},1,"январь","декабрь",1,"январь","декабрь"]
["318.","Пластовский муниципальный район","с. Степное",14,"АО «Газпром газораспределение Челябинск»",null,null,null,6,"январь","декабрь",6,"январь","декабрь",2,"январь","декабрь"]
["319.","Пластовский муниципальный район","с. Чукса",3,"АО «Газпром газораспределение Челябинск»",null,null,null,2,"январь","декабрь",1,"январь","декабрь"]
["320.","Саткинский муниципальный район","г. Бакал",1482,"АО «Газпром газораспределение Челябинск»",{"$nulls":6},360,"январь","декабрь",57,"январь","декабрь",1065,"январь","декабрь"]
["321.","Саткинский муниципальный район","г Сатка",1485,"АО «Газпром газораспределение Челябинск»",null,null,null,2,"январь","декабрь",583,"январь","декабрь",128,"январь","декабрь",766,"январь","декабрь",null,null,null,2,"январь","декабрь"]
["322.","Саткинский муниципальный район","п. Чулковка",95,"АО «Газпром газораспределение Челябинск»",{"$nulls":6},34,"январь","декабрь",null,null,null,61,"январь","декабрь",null,null,null,4,"январь","декабрь"]
["323.","Саткинский муниципальный район","рп. Межевой",1168,"АО «Газпром газораспределение Челябинск»",null,null,null,3,"январь","декабрь",589,"январь","декабрь",21,"январь","декабрь",557,"январь","декабрь"]
["324.","Саткинский муниципальный район","рп. Сулея",1129,"АО «Газпром газораспределение Челябинск»",{"$nulls":6},403,"январь","декабрь",2,"январь","декабрь",724,"январь","декабрь",null,null,null,7,"январь","декабрь"]
["325.","Саткинский муниципальный район","с. Айлино",477,"АО «Газпром газораспределение Челябинск»",{"$nulls":6},86,"январь","декабрь",null,null,null,391,"январь","декабрь"]
["326.","Сосновский муниципальный район","д. Казанцево",77,"АО «Газпром газораспределение Челябинск»",null,null,null,17,"январь","декабрь",27,"январь","декабрь",10,"январь","декабрь",{"$nulls":9},4,"январь","декабрь"]
["327.","Сосновский муниципальный район","д. Касарги",3,"АО «Газпром газораспределение Челябинск»",null,null,null,1,"январь","декабрь",1,"январь","декабрь",null,null,null,1,"январь","декабрь",null,null,null,10,"январь","декабрь"]
["328.","Сосновский муниципальный район","д. Мичурино",1,"АО «Газпром газораспределение Челябинск»",{"$nulls":9},1,"январь","декабрь",{"$nulls":6},10,"январь","декабрь",9,"январь","декабрь"]
["329.","Сосновский муниципальный район","п. Вавиловец",92,"АО «Газпром газораспределение Челябинск»",null,null,null,2,"январь","декабрь",44,"январь","декабрь",4,"январь","декабрь",{"$nulls":6},11,"январь","декабрь",12,"январь","декабрь"]
["330.","Сосновский муниципальный район","п. Кисегачинский",18,"АО «Газпром газораспределение Челябинск»",null,null,null,4,"январь","декабрь",4,"январь","декабрь",1,"январь","декабрь",{"$nulls":6},4,"январь","декабрь"]
["331.","Сосновский муниципальный район","п. Красное Поле",3,"АО «Газпром газораспределение Челябинск»",null,null,null,2,"январь","декабрь",1,"январь","декабрь",{"$nulls":9},1,"январь","декабрь"]
["332.","Сосновский муниципальный район","п. Новый Кременкуль",14,"АО «Газпром газораспределение Челябинск»",{"$nulls":6},1,"январь","декабрь",{"$nulls":9},15,"январь","декабрь",8,"январь","декабрь"]
["333.","Сосновский муниципальный район","п. Полевой",13,"АО «Газпром газораспределение Челябинск»",{"$nulls":6},3,"январь","декабрь",2,"январь","декабрь",8,"январь","декабрь"]
["334.","Сосновский муниципальный район","п. Рощино",5,"АО «Газпром газораспределение Челябинск»",null,null,null,3,"март","сентябрь",null,null,null,1,"декабрь","декабрь",{"$nulls":9},1,"июнь","июнь"]
["335.","Сосновский муниципальный район","п. Садовый",6,"АО «Газпром газораспределение Челябинск»",{"$nulls":6},4,"январь","декабрь"]
["336.","Сосновский муниципальный район","п. Саккулово",1,"АО «Газпром газораспределение Челябинск»",{"$nulls":6},1,"январь","декабрь"]
["337.","Сосновский муниципальный район","п. Саргазы",42,"АО «Газпром газораспределение Челябинск»",null,null,null,9,"январь","декабрь",21,"январь","декабрь",1,"январь","декабрь",{"$nulls":6},6,"январь","декабрь"]
["338.","Сосновский муниципальный район","п. Смолино, железнодорожная станция",23,"АО «Газпром газораспределение Челябинск»",null,null,null,5,"январь","декабрь",12,"январь","декабрь",3,"январь","декабрь",{"$nulls":6},13,"январь","декабрь"]
["339.","Сосновский муниципальный район","п. Томинский",61,"АО «Газпром газораспределение Челябинск»",{"$nulls":6},16,"январь","декабрь",8,"январь","декабрь",33,"январь","декабрь",null,null,null,1,"январь","декабрь"]
["340.","Сосновский муниципальный район","п. Южно-Челябинский Прииск",1,"АО «Газпром газораспределение Челябинск»",{"$nulls":12},1,"январь","декабрь",null,null,null,15,"январь","декабрь"]
["341.","Сосновский муниципальный район","с. Архангельское",19,"АО «Газпром газораспределение Челябинск»",null,null,null,4,"январь","декабрь",8,"январь","декабрь",7,"январь","декабрь"]
["342.","Сосновский муниципальный район","с. Вознесенка",31,"АО «Газпром газораспределение Челябинск»",null,null,null,1,"январь","декабрь",7,"январь","декабрь",null,null,null,23,"январь","декабрь"]
["343.","Сосновский муниципальный район","с. Долгодеревенское",37,"АО «Газпром газораспределение Челябинск»",{"$nulls":9},1,"январь","декабрь"]
["344.","Сосновский муниципальный район","с. Кайгородово",34,"АО «Газпром газораспределение Челябинск»",null,null,null,11,"январь","декабрь",12,"январь","декабрь",3,"январь","декабрь"]
["345.","Сосновский муниципальный район","с Кременкуль",272,"АО «Газпром газораспределение Челябинск»",null,null,null,3,"январь","декабрь",147,"январь","декабрь",21,"январь","декабрь"]
["346.","Троицкий городской округ","г. Троицк",1434,"АО «Газпром газораспределение Челябинск»",10,"январь","декабрь",163,"январь","декабрь",672,"январь","декабрь",555,"январь","декабрь",31,"январь","декабрь"]
["347.","Троицкий муниципальный район","п. Белоключевка",2,"АО «Газпром газораспределение Челябинск»",null,null,null,1,"январь","декабрь",1,"январь","декабрь"]
["348.","Троицкий муниципальный район","п. Берлин",1,"АО «Газпром газораспределение Челябинск»",{"$nulls":6},1,"январь","декабрь"]
["349.","Троицкий муниципальный район","п. Каменная Речка",47,"АО «Газпром газораспределение Челябинск»",{"$nulls":6},39,"январь","декабрь",8,"январь","декабрь",{"$nulls":6},2,"январь","декабрь"]
["350.","Троицкий муниципальный район","п. Кварцитный",49,"АО «Газпром газораспределение Челябинск»",null,null,null,6,"январь","декабрь",43,"январь","декабрь"]
["351.","Троицкий муниципальный район","п. Логовой",1,"АО «Газпром газораспределение Челябинск»",null,null,null,1,"январь","декабрь"]
["352.","Троицкий муниципальный район","п. Первомайка",4,"АО «Газпром газораспределение Челябинск»",null,null,null,3,"январь","декабрь",1,"январь","декабрь"]
["353.","Троицкий муниципальный район","п. Плодовый",1,"АО «Газпром газораспределение Челябинск»",{"$nulls":9},1,"январь","декабрь"]
["354.","Троицкий муниципальный район","п. Родники",4,"АО «Газпром газораспределение Челябинск»",null,null,null,4,"январь","декабрь"]
["355.","Троицкий муниципальный район","п. Уйско-Санарский",5,"АО «Газпром газораспределение Челябинск»",{"$nulls":6},5,"январь","декабрь"]
["356.","Троицкий муниципальный район","п. Целинный",22,"АО «Газпром газораспределение Челябинск»",null,null,null,10,"январь","декабрь",10,"январь","декабрь",2,"январь","декабрь"]
["357.","Троицкий муниципальный район","п. Шантарино",104,"АО «Газпром газораспределение Челябинск»",null,null,null,1,"январь","декабрь",97,"январь","декабрь",6,"январь","декабрь"]
["358.","Троицкий муниципальный район","п. Ясные Поляны",21,"АО «Газпром газораспределение Челябинск»",null,null,null,5,"январь","декабрь",12,"январь","декабрь",4,"январь","декабрь"]
["359.","Троицкий муниципальный район","с. Белозеры",17,"АО «Газпром газораспределение Челябинск»",1,"январь","декабрь",6,"январь","декабрь",10,"январь","декабрь"]
["360.","Троицкий муниципальный район","с. Бобровка",17,"АО «Газпром газораспределение Челябинск»",null,null,null,6,"январь","декабрь",9,"январь","декабрь",2,"январь","декабрь"]
["361.","Троицкий муниципальный район","с. Карсы",5,"АО «Газпром газораспределение Челябинск»",{"$nulls":6},5,"январь","декабрь"]
["362.","Троицкий муниципальный район","с. Ключевка",7,"АО «Газпром газораспределение Челябинск»",{"$nulls":6},5,"январь","декабрь",2,"январь","декабрь"]
["363.","Троицкий муниципальный район","с. Клястицкое",40,"АО «Газпром газораспределение Челябинск»",2,"январь","декабрь",19,"январь","декабрь",13,"январь","декабрь",6,"январь","декабрь"]
["364.","Троицкий муниципальный район","с. Нижняя Санарка",2,"АО «Газпром газораспределение Челябинск»",{"$nulls":6},2,"январь","декабрь"]
["365.","Троицкий муниципальный район","с. Песчаное",63,"АО «Газпром газораспределение Челябинск»",null,null,null,19,"январь","декабрь",41,"январь","декабрь",3,"январь","декабрь"]
["366.","Увельский муниципальный район","д. Андреевка",1,"АО «Газпром газораспределение Челябинск»",{"$nulls":6},1,"январь","декабрь"]
["367.","Увельский муниципальный район","д. Большое Шумаково",1,"АО «Газпром газораспределение Челябинск»",{"$nulls":6},1,"январь","декабрь"]
["368.","Увельский муниципальный район","д. Водопойка",6,"АО «Газпром газораспределение Челябинск»",null,null,null,1,"январь","декабрь",4,"январь","декабрь",1,"январь","декабрь"]
["369.","Увельский муниципальный район","д. Копанцево",2,"АО «Газпром газораспределение Челябинск»",null,null,null,2,"январь","декабрь"]
["370.","Увельский муниципальный район","д. Луговая",3,"АО «Газпром газораспределение Челябинск»",null,null,null,1,"январь","декабрь",2,"январь","декабрь"]
["371.","Увельский муниципальный район","д. Марково",2,"АО «Газпром газораспределение Челябинск»",null,null,null,1,"январь","декабрь",1,"январь","декабрь"]
["372.","Увельский муниципальный район","д. Родионово",2,"АО «Газпром газораспределение Челябинск»",{"$nulls":6},2,"январь","декабрь"]
["373.","Увельский муниципальный район","д. Татарка",3,"АО «Газпром газораспределение Челябинск»",{"$nulls":6},3,"январь","декабрь"]
["374.","Увельский муниципальный район","п. Березовка",3,"АО «Газпром газораспределение Челябинск»",null,null,null,2,"январь","декабрь",1,"январь","декабрь"]
["375.","Увельский муниципальный район","п. Зеленый Лог",1,"АО «Газпром газораспределение Челябинск»",null,null,null,1,"январь","декабрь",{"$nulls":12},2,"январь","декабрь"]
["376.","Увельский муниципальный район","п. Каменский",5,"АО «Газпром газораспределение Челябинск»",null,null,null,3,"январь","декабрь",2,"январь","декабрь"]
["377.","Увельский муниципальный район","п. Мирный",3,"АО «Газпром газораспределение Челябинск»",{"$nulls":6},2,"январь","декабрь",1,"январь","декабрь"]
["378.","Увельский муниципальный район","п. Михири",1,"АО «Газпром газораспределение Челябинск»",{"$nulls":6},1,"январь","декабрь"]
["379.","Увельский муниципальный район","п. Синий Бор",3,"АО «Газпром газораспределение Челябинск»",{"$nulls":6},2,"январь","декабрь",1,"январь","декабрь"]
["380.","Увельский муниципальный район","п. Сухарыш",3,"АО «Газпром газораспределение Челябинск»",null,null,null,3,"январь","декабрь"]
["381.","Увельский муниципальный район","п. Увельский",86,"АО «Газпром газораспределение Челябинск»",2,"январь","декабрь",36,"январь","декабрь",41,"январь","декабрь",7,"январь","декабрь"]
["382.","Увельский муниципальный район","п. Формачево, железнодорожная станция",4,"АО «Газпром газораспределение Челябинск»",{"$nulls":6},4,"январь","декабрь"]
["383.","Увельский муниципальный район","с. Большое Шумаково",1,"АО «Газпром газораспределение Челябинск»",null,null,null,1,"январь","декабрь"]
["384.","Увельский муниципальный район","с. Дуванкуль",1,"АО «Газпром газораспределение Челябинск»",{"$nulls":6},1,"январь","декабрь"]
["385.","Увельский муниципальный район","с. Кабанка",3,"АО «Газпром газораспределение Челябинск»",{"$nulls":6},3,"январь","декабрь"]
["386.","Увельский муниципальный район","с. Катаево",6,"АО «Газпром газораспределение Челябинск»",null,null,null,1,"январь","декабрь",5,"январь","декабрь"]
["387.","Увельский муниципальный район","с. Кичигино",40,"АО «Газпром газораспределение Челябинск»",null,null,null,3,"январь","декабрь",33,"январь","декабрь",4,"январь","декабрь"]
["388.","Увельский муниципальный район","с. Красносельское",13,"АО «Газпром газораспределение Челябинск»",null,null,null,2,"январь","декабрь",5,"январь","декабрь",3,"январь","декабрь",3,"январь","декабрь"]
["389.","Увельский муниципальный район","с. Малое Шумаково",1,"АО «Газпром газораспределение Челябинск»",{"$nulls":6},1,"январь","декабрь"]
["390.","Увельский муниципальный район","с. Мордвиновка",4,"АО «Газпром газораспределение Челябинск»",null,null,null,3,"январь","декабрь",1,"январь","декабрь"]
["391.","Увельский муниципальный район","с. Песчаное",8,"АО «Газпром газораспределение Челябинск»",null,null,null,2,"январь","декабрь",4,"январь","декабрь",2,"январь","декабрь"]
["392.","Увельский муниципальный район","с. Петровское",1,"АО «Газпром газораспределение Челябинск»",null,null,null,1,"январь","декабрь"]
["393.","Увельский муниципальный район","с. Половинка",6,"АО «Газпром газораспределение Челябинск»",null,null,null,1,"январь","декабрь",5,"январь","декабрь"]
["394.","Увельский муниципальный район","с. Рождественка",2,"АО «Газпром газораспределение Челябинск»",{"$nulls":6},2,"январь","декабрь"]
["395.","Увельский муниципальный район","с. Хомутинино",12,"АО «Газпром газораспределение Челябинск»",null,null,null,1,"январь","декабрь",7,"январь","декабрь",4,"январь","декабрь"]
["396.","Увельский муниципальный район","с. Хуторка",10,"АО «Газпром газораспределение Челябинск»",null,null,null,2,"январь","декабрь",6,"январь","декабрь",2,"январь","декабрь"]
["397.","Увельский муниципальный район","ст. Формачево",1,"АО «Газпром газораспределение Челябинск»",{"$nulls":6},1,"январь","декабрь"]
["398.","Уйский муниципальный район","г. Верхний Уфалей",3,"АО «Газпром газораспределение Челябинск»",{"$nulls":6},2,"январь","декабрь",1,"январь","декабрь"]
["399.","Уйский муниципальный район","д. Верхнеусцелемово",30,"АО «Газпром газораспределение Челябинск»",{"$nulls":6},29,"январь","декабрь",1,"январь","декабрь"]
["400.","Уйский муниципальный район","д. Кочнево",29,"АО «Газпром газораспределение Челябинск»",{"$nulls":6},29,"январь","декабрь"]
["401.","Уйский муниципальный район","д. Яринка",10,"АО «Газпром газораспределение Челябинск»",null,null,null,3,"январь","декабрь",5,"январь","декабрь",2,"январь","декабрь"]
["402.","Уйский муниципальный район","п. Берег",2,"АО «Газпром газораспределение Челябинск»",{"$nulls":9},2,"январь","декабрь"]
["403.","Уйский муниципальный район","п. Вишневка",8,"АО «Газпром газораспределение Челябинск»",null,null,null,6,"январь","декабрь",2,"январь","декабрь"]
["404.","Уйский муниципальный район","п. Глазуновка",31,"АО «Газпром газораспределение Челябинск»",{"$nulls":6},31,"январь","декабрь"]
["405.","Уйский муниципальный район","п. Зерновой",4,"АО «Газпром газораспределение Челябинск»",null,null,null,2,"январь","декабрь",2,"январь","декабрь"]
["406.","Уйский муниципальный район","п. Лебедевка",6,"АО «Газпром газораспределение Челябинск»",null,null,null,4,"январь","декабрь",2,"январь","декабрь"]
["407.","Уйский муниципальный район","п. Мирный",2,"АО «Газпром газораспределение Челябинск»",{"$nulls":6},2,"январь","декабрь"]
["408.","Уйский муниципальный район","с. Аминево",148,"АО «Газпром газораспределение Челябинск»",{"$nulls":6},148,"январь","декабрь"]
["409.","Уйский муниципальный район","с. Белово",12,"АО «Газпром газораспределение Челябинск»",null,null,null,4,"январь","декабрь",8,"январь","декабрь"]
["410.","Уйский муниципальный район","с. Кидыш",182,"АО «Газпром газораспределение Челябинск»",{"$nulls":6},181,"январь","декабрь",1,"январь","декабрь"]
["411.","Уйский муниципальный район","с. Ларино",85,"АО «Газпром газораспределение Челябинск»",3,"январь","декабрь",30,"январь","декабрь",49,"январь","декабрь",3,"январь","декабрь"]
["412.","Уйский муниципальный район","с. Маслово",45,"АО «Газпром газораспределение Челябинск»",null,null,null,1,"январь","декабрь",39,"январь","декабрь",5,"январь","декабрь"]
["413.","Уйский муниципальный район","с. Нижнеусцелемово",18,"АО «Газпром газораспределение Челябинск»",null,null,null,5,"январь","декабрь",13,"январь","декабрь"]
["414.","Уйский муниципальный район","с. Соколовское",10,"АО «Газпром газораспределение Челябинск»",null,null,null,3,"январь","декабрь",7,"январь","декабрь",{"$nulls":12},23,"январь","декабрь"]
["415.","Уйский муниципальный район","с. Уйское",399,"АО «Газпром газораспределение Челябинск»",23,"январь","декабрь",130,"январь","декабрь",200,"январь","декабрь",46,"январь","декабрь"]
["416.","Усть-катавский городской округ","г. Усть-Катав",1298,"АО «Газпром газораспределение Челябинск»",null,null,null,96,"январь","декабрь",367,"январь","декабрь",101,"январь","декабрь",734,"январь","декабрь"]
["417.","Чебаркульский городской округ","г. Чебаркуль",1441,"АО «Газпром газораспределение Челябинск»",6,"январь","декабрь",85,"январь","декабрь",164,"январь","декабрь",1170,"январь","декабрь",16,"январь","декабрь",null,null,null,39,"январь","декабрь",3,"январь","декабрь"]
["418.","Чебаркульский городской округ","мкр. Южный",34,"АО «Газпром газораспределение Челябинск»",null,null,null,11,"январь","декабрь",14,"январь","декабрь",9,"январь","декабрь",{"$nulls":9},9,"январь","декабрь"]
["419.","Чебаркульский муниципальный район","г. Чебаркуль",3,"АО «Газпром газораспределение Челябинск»",null,null,null,3,"январь","декабрь"]
["420.","Чебаркульский муниципальный район","д. Аджитарово",20,"АО «Газпром газораспределение Челябинск»",{"$nulls":6},2,"январь","декабрь",17,"январь","декабрь",1,"январь","декабрь",{"$nulls":6},13,"январь","декабрь"]
["421.","Чебаркульский муниципальный район","д. Боровое",28,"АО «Газпром газораспределение Челябинск»",1,"январь","декабрь",12,"январь","декабрь",13,"январь","декабрь",2,"январь","декабрь"]
["422.","Чебаркульский муниципальный район","д.Бутырки",8,"АО «Газпром газораспределение Челябинск»",null,null,null,1,"январь","декабрь",6,"январь","декабрь",1,"январь","декабрь",{"$nulls":9},1,"январь","декабрь"]
["423.","Чебаркульский муниципальный район","д. Десятилетие",12,"АО «Газпром газораспределение Челябинск»",null,null,null,3,"январь","декабрь",5,"январь","декабрь",4,"январь","декабрь",{"$nulls":6},2,"январь","декабрь"]
["424.","Чебаркульский муниципальный район","д. Запивалово",22,"АО «Газпром газораспределение Челябинск»",null,null,null,7,"январь","декабрь",12,"январь","декабрь",3,"январь","декабрь"]
["425.","Чебаркульский муниципальный район","д. Звягино",15,"АО «Газпром газораспределение Челябинск»",null,null,null,5,"январь","декабрь",5,"январь","декабрь",5,"январь","декабрь",{"$nulls":9},11,"январь","декабрь"]
["426.","Чебаркульский муниципальный район","д. Казбаево",12,"АО «Газпром газораспределение Челябинск»",1,"январь","декабрь",null,null,null,11,"январь","декабрь",{"$nulls":9},1,"январь","декабрь",2,"январь","декабрь"]
["427.","Чебаркульский муниципальный район","д. Камбулат",7,"АО «Газпром газораспределение Челябинск»",null,null,null,3,"январь","декабрь",3,"январь","декабрь",1,"январь","декабрь"]
["428.","Чебаркульский муниципальный район","д. Колотовка",1,"АО «Газпром газораспределение Челябинск»",{"$nulls":9},1,"январь","декабрь"]
["429.","Чебаркульский муниципальный район","д. Коротаново",3,"АО «Газпром газораспределение Челябинск»",{"$nulls":6},2,"январь","декабрь",1,"январь","декабрь"]
["430.","Чебаркульский муниципальный район","д. Малково",98,"АО «Газпром газораспределение Челябинск»",2,"январь","декабрь",31,"январь","декабрь",56,"январь","декабрь",9,"январь","декабрь"]
["431.","Чебаркульский муниципальный район","д. Маскайка",7,"АО «Газпром газораспределение Челябинск»",null,null,null,2,"январь","декабрь",4,"январь","декабрь",1,"январь","декабрь",{"$nulls":9},25,"январь","декабрь",11,"январь","декабрь"]
["432.","Чебаркульский муниципальный район","д. Попово",12,"АО «Газпром газораспределение Челябинск»",{"$nulls":6},11,"январь","декабрь",1,"январь","декабрь",{"$nulls":6},3,"январь","декабрь",4,"январь","декабрь",1,"январь","декабрь"]
["433.","Чебаркульский муниципальный район","д. Самарка",1,"АО «Газпром газораспределение Челябинск»",{"$nulls":6},1,"январь","декабрь",{"$nulls":9},83,"январь","декабрь",18,"январь","декабрь"]
["434.","Чебаркульский муниципальный район","д. Сарафаново",31,"АО «Газпром газораспределение Челябинск»",1,"январь","декабрь",13,"январь","декабрь",14,"январь","декабрь",2,"январь","декабрь",1,"январь","декабрь"]
["435.","Чебаркульский муниципальный район","д. Темир",4,"АО «Газпром газораспределение Челябинск»",null,null,null,2,"январь","декабрь",2,"январь","декабрь"]
["436.","Чебаркульский муниципальный район","д. Шахматово",9,"АО «Газпром газораспределение Челябинск»",null,null,null,6,"январь","декабрь",1,"январь","декабрь",2,"январь","декабрь"]
["437.","Чебаркульский муниципальный район","п. Бишкиль",90,"АО «Газпром газораспределение Челябинск»",1,"январь","декабрь",30,"январь","декабрь",44,"январь","декабрь",17,"январь","декабрь"]
["438.","Чебаркульский муниципальный район","п. Мирный",7,"АО «Газпром газораспределение Челябинск»",null,null,null,2,"январь","декабрь",3,"январь","декабрь",2,"январь","декабрь"]
["439.","Чебаркульский муниципальный район","п. Спутник",1,"АО «Газпром газораспределение Челябинск»",null,null,null,1,"январь","декабрь"]
["440.","Чебаркульский муниципальный район","п. Тимирязевский",46,"АО «Газпром газораспределение Челябинск»",null,null,null,5,"январь","декабрь",29,"январь","декабрь",9,"январь","декабрь",3,"январь","декабрь"]
["441.","Чебаркульский муниципальный район","с. Варламово",90,"АО «Газпром газораспределение Челябинск»",null,null,null,1,"январь","декабрь",44,"январь","декабрь",45,"январь","декабрь"]
["442.","Чебаркульский муниципальный район","с. Кундравы",127,"АО «Газпром газораспределение Челябинск»",6,"январь","декабрь",32,"январь","декабрь",66,"январь","декабрь",23,"январь","декабрь"]
["443.","Чебаркульский муниципальный район","с. Медведево",20,"АО «Газпром газораспределение Челябинск»",1,"январь","декабрь",10,"январь","декабрь",6,"январь","декабрь",3,"январь","декабрь"]
["444.","Чебаркульский муниципальный район","с. Пустозерово",11,"АО «Газпром газораспределение Челябинск»",null,null,null,2,"январь","декабрь",3,"январь","декабрь",6,"январь","декабрь"]
["445.","Чебаркульский муниципальный район","с. Травники",42,"АО «Газпром газораспределение Челябинск»",2,"январь","декабрь",16,"январь","декабрь",18,"январь","декабрь",6,"январь","декабрь"]
["446.","Чебаркульский муниципальный район","с. Филимоново",7,"АО «Газпром газораспределение Челябинск»",null,null,null,3,"январь","декабрь",3,"январь","декабрь",1,"январь","декабрь"]
["447.","Чесменский муниципальный район","п. Беловка",6,"АО «Газпром газораспределение Челябинск»",null,null,null,1,"январь","декабрь",3,"январь","декабрь",2,"январь","декабрь"]
["448.","Чесменский муниципальный район","п. Березинский",16,"АО «Газпром газораспределение Челябинск»",null,null,null,5,"январь","декабрь",10,"январь","декабрь",1,"январь","декабрь"]
["449.","Чесменский муниципальный район","п. Бускульский",4,"АО «Газпром газораспределение Челябинск»",null,null,null,1,"январь","декабрь",3,"январь","декабрь"]
["450.","Чесменский муниципальный район","п. Калиновский",1,"АО «Газпром газораспределение Челябинск»",{"$nulls":6},1,"январь","декабрь"]
["451.","Чесменский муниципальный район","п. Луговой",4,"АО «Газпром газораспределение Челябинск»",null,null,null,2,"январь","декабрь",1,"январь","декабрь",1,"январь","декабрь"]
["452.","Чесменский муниципальный район","п. Новоеткульский",5,"АО «Газпром газораспределение Челябинск»",{"$nulls":6},4,"январь","декабрь",1,"январь","декабрь"]
["453.","Чесменский муниципальный район","п. Новый Путь",14,"АО «Газпром газораспределение Челябинск»",{"$nulls":6},10,"январь","декабрь",4,"январь","декабрь"]
["454.","Чесменский муниципальный район","п. Огнеупорный",1,"АО «Газпром газораспределение Челябинск»",{"$nulls":6},1,"январь","декабрь"]
["455.","Чесменский муниципальный район","п. Тарасовка",2,"АО «Газпром газораспределение Челябинск»",null,null,null,1,"январь","декабрь",1,"январь","декабрь"]
["456.","Чесменский муниципальный район","п. Углицкий",13,"АО «Газпром газораспределение Челябинск»",null,null,null,4,"январь","декабрь",8,"январь","декабрь",1,"январь","декабрь"]
["457.","Чесменский муниципальный район","п. Черноборский",15,"АО «Газпром газораспределение Челябинск»",null,null,null,3,"январь","декабрь",12,"январь","декабрь"]
["458.","Чесменский муниципальный район","с. Светлое",15,"АО «Газпром газораспределение Челябинск»",null,null,null,3,"январь","декабрь",11,"январь","декабрь",1,"январь","декабрь"]
["459.","Чесменский муниципальный район","с. Тарутино",2,"АО «Газпром газораспределение Челябинск»",{"$nulls":6},2,"январь","декабрь"]
["460.","Чесменский муниципальный район","с. Чесма",111,"АО «Газпром газораспределение Челябинск»",null,null,null,11,"январь","декабрь",51,"январь","декабрь",49,"январь","декабрь"]
["461.","Южноуральский городской округ","г. Южноуральск",129,"АО «Газпром газораспределение Челябинск»",1,"январь","декабрь",26,"январь","декабрь",88,"январь","декабрь",23,"январь","декабрь"]
["462.","Южноуральский городской округ","п. Летягино",3,"АО «Газпром газораспределение Челябинск»",{"$nulls":6},3,"январь","декабрь"]
["463.","Агаповский муниципальный район","п. Урожайный",96,"АО «Газпром газораспределение Челябинск»",{"$nulls":9},96,"январь","декабрь"]
["464.","Верхнеуральский муниципальный район","п. Дзержинка",186,"АО «Газпром газораспределение Челябинск»",{"$nulls":9},186,"январь","декабрь"]
["465.","Нагайбакский муниципальный район","п. Петровский",132,"АО «Газпром газораспределение Челябинск»",{"$nulls":9},132,"январь","декабрь"]
["466.","Нагайбакский муниципальный район","п. Астафьевский",82,"АО «Газпром газораспределение Челябинск»",{"$nulls":9},82,"январь","декабрь"]
["467.","Нагайбакский муниципальный район","п. Курганный",122,"АО «Газпром газораспределение Челябинск»",{"$nulls":9},122,"январь","декабрь"]
["468.","Уйский муниципальный район","п. Луговой",9,"АО «Газпром газораспределение Челябинск»",{"$nulls":12},9,"январь","декабрь"]
["469.","Уйский муниципальный район","д. Булатово",117,"АО «Газпром газораспределение Челябинск»",{"$nulls":12},117,"январь","декабрь"]
["470.","Уйский муниципальный район","д. Замотохина",50,"АО «Газпром газораспределение Челябинск»",{"$nulls":12},50,"январь","декабрь"]
["471.","Уйский муниципальный район","п. Речной",46,"АО «Газпром газораспределение Челябинск»",{"$nulls":12},46,"январь","декабрь"]
["472.","Уйский муниципальный район","п. Глазуновка",81,"АО «Газпром газораспределение Челябинск»",{"$nulls":6},15,"январь","декабрь",null,null,null,66,"январь","декабрь"]
["473.","Уйский муниципальный район","д. Кочнево",49,"АО «Газпром газораспределение Челябинск»",{"$nulls":6},12,"январь","декабрь",null,null,null,37,"январь","декабрь"]
["474.","Уйский муниципальный район","с. Никольское",102,"АО «Газпром газораспределение Челябинск»",{"$nulls":12},102,"январь","декабрь"]
["475.","Уйский муниципальный район","д. Краснокаменка",50,"АО «Газпром газораспределение Челябинск»",{"$nulls":12},50,"январь","декабрь"]
["476.","Каслинский муниципальный район","с. Воскресенское",{"$f":"F485+I485+L485+O485+R485+U485","v":931},"АО «Трансэнерго»",2,"октябрь","декабрь",86,"апрель","декабрь",544,"апрель","декабрь",299,"январь","декабрь"]
["477.","Снежинский городской округ","г. Снежинск",{"$f":"F486+I486+L486+O486+R486+U486","v":11},"АО «Трансэнерго»",{"$nulls":6},11,"май","декабрь"]
["478.","Снежинский городской округ","п. Ближний Береговой",{"$f":"F487+I487+L487+O487+R487+U487","v":9},"АО «Трансэнерго»",{"$nulls":6},9,"апрель","декабрь"]
["479.","Красноармейский муниципальный район","д. Чурилово",{"$f":"F488+I488+L488+O488","v":100},"АО «Челябинскгоргаз»",null,null,null,12,"январь","декабрь",61,"январь","декабрь",27,"январь","декабрь"]
["480.","Сосновский муниципальный район","д. Казанцево",2,"АО «Челябинскгоргаз»",null,null,null,2,"январь","декабрь"]
["481.","Сосновский муниципальный район","д. Шигаево",11,"АО «Челябинскгоргаз»",null,null,null,2,"январь","декабрь",8,"январь","декабрь",1,"январь","декабрь"]
["482.","Сосновский муниципальный район","п. Малая Сосновка",21,"АО «Челябинскгоргаз»",null,null,null,17,"январь","декабрь",4,"январь","декабрь"]
["483.","Сосновский муниципальный район","п. Есаульский",59,"АО «Челябинскгоргаз»",null,null,null,4,"январь","декабрь",55,"январь","декабрь"]
["484.","Сосновский муниципальный район","п. Красное Поле",54,"АО «Челябинскгоргаз»",null,null,null,18,"январь","декабрь",31,"январь","декабрь",5,"январь","декабрь"]
["485.","Сосновский муниципальный район","п. Рощино",25,"АО «Челябинскгоргаз»",null,null,null,2,"январь","декабрь",14,"январь","декабрь",{"$nulls":12},8,"январь","сентябрь",1,"март","март"]
["486.","Сосновский муниципальный район","п. Саккулово",{"$f":"F495+I495+L495+O495","v":5},"АО «Челябинскгоргаз»",null,null,null,3,"январь","декабрь",2,"январь","декабрь"]
["487.","Сосновский муниципальный район","п. Саргазы",6,"АО «Челябинскгоргаз»",null,null,null,5,"январь","декабрь",1,"январь","декабрь"]
["488.","Сосновский муниципальный район","п. Южно-Челябинский Прииск",18,"АО «Челябинскгоргаз»",null,null,null,11,"январь","декабрь",6,"январь","декабрь",1,"январь","декабрь"]
["489.","Сосновский муниципальный район","с. Долгодеревенское",123,"АО «Челябинскгоргаз»",null,null,null,4,"январь","декабрь",86,"январь","декабрь",33,"январь","декабрь"]
["490.","Сосновский муниципальный район","с. Кайгородово",2,"АО «Челябинскгоргаз»",null,null,null,1,"январь","декабрь",1,"январь","декабрь"]
["491.","Сосновский муниципальный район","п. Новый Кременкуль",1,"АО «Челябинскгоргаз»",null,null,null,1,"январь","декабрь"]
["492.","Челябинский городской округ","г. Челябинск",1837,"АО «Челябинскгоргаз»",null,null,null,821,"январь","декабрь",949,"январь","декабрь",67,"январь","декабрь"]
["493.","Магнитогорский городской округ","г. Магнитогорск",{"$f":"F502+I502+L502+O502+R502+U502","v":1471},"МУП «Магнитогорские газовые сети»",30,"август","декабрь",139,"январь","декабрь",791,"январь","декабрь",471,"январь","декабрь",40,"январь","декабрь"]
["494.","Трехгорный городской округ","г. Трехгорный",34,"МУП «Многоотраслевое производственное объединение энергосетей» г. Трехгорного",null,null,null,13,"январь","декабрь",21,"январь","декабрь"]
["495.","Катав-Ивановский муниципальный район","с. Лебедки",1,"МУП «Теплоэнерго»",{"$nulls":6},1,"январь","декабрь"]
["496.","Катав-Ивановский муниципальный район","г. Катав-Ивановск",821,"МУП «Теплоэнерго»",{"$nulls":6},821,"январь","декабрь"]
["497.","Сосновский муниципальный район","п. Терема ЖК «Город L Town»",49,"ООО «Газэнергосервис»",{"$nulls":6},40,"январь","декабрь",9,"январь","декабрь"]
["498.","Ашинский муниципальный район","г. Аша",2051,"ООО «Златоустгазстрой»",null,null,null,383,"январь","декабрь",1668,"январь","декабрь"]
["499.","Ашинский муниципальный район","г. Сим",815,"ООО «Златоустгазстрой»",null,null,null,205,"январь","декабрь",610,"январь","декабрь"]
["500.","Сосновский муниципальный район","п. Томино, ж/д. рзд",4,"ООО «Классик»",null,null,null,1,"декабрь","декабрь",3,"февраль","декабрь"]
["501.","Сосновский муниципальный район","д. Касарги",18,"ООО «Классик»",null,null,null,2,"ноябрь","декабрь",5,"февраль","октябрь",11,"февраль","октябрь",{"$nulls":9},9,"апрель","июль",3,"январь","январь"]
["502.","Сосновский муниципальный район","с. Кременкуль",0,"ООО «Классик»",{"$nulls":18},108,"январь","ноябрь",6,"январь","февраль"]
["503.","Сосновский муниципальный район","д. Малиновка",0,"ООО «Классик»",{"$nulls":18},293,"январь","июль",61,"январь","июнь"]
["504.","Сосновский муниципальный район","п. Солнечный",0,"ООО «Классик»",{"$nulls":21},20,"январь","май",1,"январь","январь"]
["505.","Сосновский муниципальный район","п. Сагаусты",0,"ООО «Классик»",{"$nulls":21},6,"январь","июль",2,"январь","январь"]
["506.","Сосновский муниципальный район","п. Нагорный",0,"ООО «Классик»",{"$nulls":21},6,"апрель","май"]
["507.","Сосновский муниципальный район","с. Большое Баландино",0,"ООО «Классик»",{"$nulls":21},29,"январь","июль",4,"январь","январь"]
["508.","Сосновский муниципальный район","п. Терема",1,"ООО «Классик»",{"$nulls":6},1,"август","август",{"$nulls":9},45,"январь","июль",20,"январь","июнь"]
["509.","Сосновский муниципальный район","с. Архангельское",6,"ООО «Классик»",null,null,null,2,"октябрь","ноябрь",3,"январь","октябрь",1,"февраль","февраль"]
["510.","Сосновский муниципальный район","д. Бутаки",20,"ООО «Классик»",null,null,null,7,"ноябрь","декабрь",10,"январь","октябрь",3,"май","август",{"$nulls":9},3,"апрель","май",1,"январь","январь"]
["511.","Сосновский муниципальный район","с. Вознесенка",62,"ООО «Классик»",null,null,null,34,"апрель","ноябрь",24,"февраль ","ноябрь",4,"январь","ноябрь"]
["512.","Сосновский муниципальный район","д. Ужевка",12,"ООО «Классик»",null,null,null,12,"июнь","октябрь",{"$nulls":15},8,"январь","апрель"]
["513.","Сосновский муниципальный район","д. Казанцево",30,"ООО «Классик»",null,null,null,28,"июнь","декабрь",2,"июль","сентябрь",{"$nulls":12},11,"январь","май",1,"март","март"]
["514.","Сосновский муниципальный район","с. Кайгородово",22,"ООО «Классик»",null,null,null,17,"декабрь","декабрь",4,"январь","август",1,"май","май",{"$nulls":9},6,"январь","июль"]
["515.","Сосновский муниципальный район","д. Киржакуль",1,"ООО «Классик»",null,null,null,1,"август","август"]
["516.","Сосновский муниципальный район","д. Ключевка",36,"ООО «Классик»",null,null,null,23,"июль","декабрь",13,"январь","октябрь",{"$nulls":12},11,"январь","август"]
["517.","Сосновский муниципальный район","п. Красное Поле",148,"ООО «Классик»",null,null,null,69,"май","декабрь",31,"январь","ноябрь",48,"январь","сентябрь",{"$nulls":9},3,"январь","январь",56,"январь","июль"]
["518.","Сосновский муниципальный район","п. Полянный",0,"ООО «Классик»",{"$nulls":21},2,"январь","январь"]
["519.","Сосновский муниципальный район","д. Моховички",106,"ООО «Классик»",null,null,null,74,"июнь","декабрь",31,"январь","октябрь",1,"октябрь","октябрь",{"$nulls":9},50,"январь","июль",15,"январь","январь"]
["520.","Сосновский муниципальный район","д. Новое Поле",53,"ООО «Классик»",null,null,null,39,"май","декабрь",14,"январь","октябрь",{"$nulls":12},17,"январь","май",1,"январь","январь"]
["521.","Сосновский муниципальный район","п. Новотроицкий",15,"ООО «Классик»",null,null,null,10,"июль","октябрь",5,"февраль","ноябрь"]
["522.","Сосновский муниципальный район","п. Полевой",79,"ООО «Классик»",null,null,null,14,"июнь","ноябрь",21,"январь","декабрь",44,"январь","сентябрь"]
["523.","Сосновский муниципальный район","п. Полетаево",176,"ООО «Классик»",null,null,null,71,"октябрь","декабрь",34,"февраль","октябрь",56,"январь","декабрь",15,"июль","июль",{"$nulls":6},21,"январь","июль",13,"июнь","июнь"]
["524.","Сосновский муниципальный район","д. Полетаево II-е",43,"ООО «Классик»",null,null,null,40,"сентябрь","декабрь",3,"апрель","август",{"$nulls":12},5,"январь","май"]
["525.","Сосновский муниципальный район","п. Прудный",{"$f":"F534+I534+L534+O534+R534+U534","v":65},"ООО «Классик»",null,null,null,47,"июнь","декабрь",16,"январь","октябрь",2,"март","март",{"$nulls":9},37,"январь","июль",4,"май","июнь"]
["526.","Сосновский муниципальный район","п. Рощино",112,"ООО «Классик»",null,null,null,80,"июль","декабрь",32,"январь","ноябрь",{"$nulls":12},33,"январь","июль",5,"январь","апрель"]
["527.","Сосновский муниципальный район","с. Полетаево I-е",14,"ООО «Классик»",null,null,null,8,"ноябрь","декабрь",4,"январь","октябрь",2,"январь","январь",{"$nulls":9},1,"январь","январь"]
["528.","Сосновский муниципальный район","п. Саккулово",53,"ООО «Классик»",null,null,null,20,"март","декабрь",27,"январь","декабрь",3,"апрель","май",null,null,null,3,"январь","июль"]
["529.","Сосновский муниципальный район","п. Саргазы",66,"ООО «Классик»",null,null,null,8,"ноябрь","декабрь",45,"январь","ноябрь",12,"март","ноябрь",1,"июль","июль",{"$nulls":6},17,"январь","август"]
["530.","Сосновский муниципальный район","п. Смолино, ж/д ст.",20,"ООО «Классик»",null,null,null,7,"сентябрь","декабрь",10,"январь","октябрь",2,"сентябрь","октябрь",1,"январь","январь",{"$nulls":6},5,"январь","июль",3,"январь","январь"]
["531.","Сосновский муниципальный район","д. Султаева",47,"ООО «Классик»",null,null,null,12,"февраль","декабрь",32,"февраль","ноябрь",3,"январь","март"]
["532.","Сосновский муниципальный район","д. Таловка",12,"ООО «Классик»",null,null,null,4,"ноябрь","декабрь",6,"март","октябрь",2,"январь","апрель"]
["533.","Сосновский муниципальный район","п. Теченский",3,"ООО «Классик»",null,null,null,1,"июль","июль",2,"май","сентябрь"]
["534.","Сосновский муниципальный район","п. Томинский",5,"ООО «Классик»",null,null,null,3,"апрель","октябрь",2,"сентябрь","октябрь"]
["535.","Сосновский муниципальный район","п. Трубный ",120,"ООО «Классик»",null,null,null,45,"октябрь","декабрь",53,"январь","ноябрь",19,"март","декабрь",3,"январь","июнь",{"$nulls":6},8,"январь","июль",1,"июнь","июнь"]
["536.","Сосновский муниципальный район","д. Этимганова",22,"ООО «Классик»",null,null,null,7,"июль","декабрь",8,"февраль","июль",7,"февраль","июнь"]
["538.","Сосновский муниципальный район","д. Ключи",108,"ООО «Классик»",null,null,null,4,"октябрь","декабрь",23,"январь","октябрь",81,"февраль","декабрь",{"$nulls":9},21,"январь","июль",36,"январь","август",1,"июнь","июнь"]
["539.","Сосновский муниципальный район","п. Есаульский",26,"ООО «Классик»",null,null,null,6,"декабрь","декабрь",6,"март","апрель",14,"январь","октябрь",{"$nulls":9},13,"январь","июль"]
["540.","Сосновский муниципальный район","д. Заварухино",4,"ООО «Классик»",{"$nulls":9},4,"май","ноябрь",{"$nulls":9},2,"апрель","май"]
["541.","Сосновский муниципальный район","п. Мирный",8,"ООО «Классик»",null,null,null,3,"декабрь","декабрь",1,"январь","январь",4,"январь","декабрь",{"$nulls":9},10,"январь","июль",5,"январь","январь"]
["542.","Сосновский муниципальный район","д. Медиак",2,"ООО «Классик»",{"$nulls":6},2,"сентябрь","декабрь",{"$nulls":12},7,"январь","май"]
["543.","Сосновский муниципальный район","с Долгодеревенское",2,"ООО «Классик»",{"$nulls":6},2,"сентябрь","декабрь",{"$nulls":12},1,"январь","январь"]
["544.","Сосновский муниципальный район","п Западный",0,"ООО «Классик»",{"$nulls":18},1,"январь","январь",2,"январь","январь"]
["545.","Сосновский муниципальный район","п Садовый",0,"ООО «Классик»",{"$nulls":18},4,"январь","июль",2,"январь","январь"]
["546.","Сосновский муниципальный район","п. Малая Сосновка",2,"ООО «Классик»",{"$nulls":6},2,"май","ноябрь"]
["547.","Сосновский муниципальный район","д. Прохорово",4,"ООО «Классик»",{"$nulls":21},4,"январь","январь"]
["548.","Сосновский муниципальный район","п. Северный",43,"ООО «Классик»",{"$nulls":18},31,"январь","август",12,"январь","июнь"]
["549.","Агаповский муниципальный район","с. Агаповка",{"$f":"F557+I557+L557+O557+R557+U557","v":237},"ООО «Магнитогорскгазстрой»",1,"январь","декабрь",69,"январь","декабрь",149,"январь","декабрь",18,"январь","декабрь"]
["550.","Агаповский муниципальный район","п. Горный",3,"ООО «Магнитогорскгазстрой»",null,null,null,3,"январь","декабрь"]
["551.","Агаповский муниципальный район","п. Воздвиженка",33,"ООО «Магнитогорскгазстрой»",null,null,null,14,"январь","декабрь",19,"январь","декабрь"]
["552.","Агаповский муниципальный район","п. Ташказган",18,"ООО «Магнитогорскгазстрой»",null,null,null,9,"январь","декабрь",9,"январь","декабрь"]
["553.","Магнитогорский городской округ","г. Магнитогорск",463,"ООО «Магнитогорскгазстрой»",25,"декабрь","декабрь",215,"январь","декабрь",208,"январь","декабрь",15,"январь","декабрь"]
["554.","Верхнеуфалейский городской округ","г. Верхний Уфалей",15,"ООО «Партнер-газ»",{"$nulls":6},15,"январь","декабрь"]
["555.","Златоустовский городской округ","г. Златоуст",23,"ООО «Партнер-газ»",{"$nulls":6},21,"январь","декабрь",2,"январь","декабрь"]
["556.","Каслинский муниципальный район","г. Касли",8,"ООО «Партнер-газ»",{"$nulls":6},6,"январь","декабрь",2,"январь","декабрь"]
["557.","Троицкий городской округ","г. Троицк",1157,"ООО «Партнер-газ»",null,null,null,78,"апрель","ноябрь",656,"апрель","декабрь",423,"январь","декабрь"]
["558.","Сосновский муниципальный район","п. Западный",0,"ООО «Стандарт Лимит»",{"$nulls":16},"январь","декабрь"]
["559.","Миасский городской округ","п. Горный",25,"ООО «Тополь М»",{"$nulls":6},12,"январь","декабрь",13,"январь","декабрь"]
["560.","Миасский городской округ","п. Верхний Атлян",27,"ООО «Тополь М»",null,null,null,2,"январь","декабрь",23,"январь","декабрь",2,"январь","декабрь"]
["561.","Миасский городской округ","п. Ленинск",95,"ООО «Тополь М»",null,null,null,18,"январь","декабрь",69,"январь","декабрь",8,"январь","декабрь"]
["562.","Миасский городской округ","г. Миасс",272,"ООО «Тополь М»",null,null,null,36,"январь","декабрь",200,"январь","декабрь",36,"январь","декабрь"]
["563.","Миасский городской округ","п. Михеевка",13,"ООО «Тополь М»",null,null,null,1,"январь","декабрь",12,"январь","декабрь"]
["564.","Миасский городской округ","п. Нижний Атлян",134,"ООО «Тополь М»",{"$nulls":6},69,"январь","декабрь",65,"январь","декабрь"]
["565.","Миасский городской округ","п. Северные Печи",8,"ООО «Тополь М»",{"$nulls":6},8,"январь","декабрь"]
["566.","Миасский городской округ","с. Сыростан",128,"ООО «Тополь М»",null,null,null,11,"январь","декабрь",81,"январь","декабрь",36,"январь","декабрь"]
["567.","Миасский городской округ","п. Тургояк",0,"ООО «Тополь М»"]
["568.","Миасский городской округ","п. Новый Хребет",7,"ООО «Тополь М»",{"$nulls":6},7,"январь","декабрь"]
["569.","Миасский городской округ","п. Хребет, ж/д ст.",1,"ООО «Тополь М»",{"$nulls":6},1,"январь","декабрь"]
[]
[]
["_____* Домовладение - объект индивидуального жилищного строительства или жилой дом блокированной застройки и примыкающие к ним и (или) отдельно стоящие на общем с объектом индивидуального жилищного строительства или жилым домом блокированной застройки земельном участке надворные постройки (гараж, баня (сауна, бассейн), теплица (зимний сад), помещения для содержания домашнего скота и птицы, иные объекты).\n_____** В тексте настоящего приложения используются следующие сокращения: ж/д ст. - железнодорожная станция, рзд. - разъезд, СНТ - садовое некоммерческое товарищество, ООО - общество с ограниченной ответственностью, АО - акционерное общество, МУП - муниципальное унитарное предприятие, г. - город, с. - село, п. - поселок, д. - деревня."]